{"text_format":"1","workbook":"xlsx","n_sheets":2,"sheets":["Cerere de Finanţare","Asociati"],"not_rendered":{"charts":0,"images":1,"macros":1,"external_links":0,"defined_names":1,"comments":0,"pivot_tables":0},"unopened":[],"bounds":{"document_bytes":16777216,"sheet_cells":100000,"rows_first":2000,"rows_last":500,"rows_between":2000,"halvings":0,"cell_chars":16384,"cell_head_chars":4096},"cells_cut":0,"cells_raw":0,"read":"whole","date_system":"1900"}

{"sheet":"Cerere de Finanţare","index":0,"n_rows":550,"n_cols":57,"rows_kept":550,"cut":false,"hidden":false,"merged":[[541,50,541,60],[542,17,542,49],[542,50,542,60],[543,0,543,16],[543,17,543,49],[543,50,543,60],[541,0,542,16],[548,0,548,60],[549,0,549,60],[545,0,545,60],[547,0,547,60],[399,0,399,8],[399,9,399,29],[399,30,399,37],[399,38,399,47],[399,48,399,60],[401,0,401,60],[433,23,433,31],[433,49,433,57],[403,0,403,8],[402,0,402,8],[402,9,402,29],[403,9,403,29],[404,9,404,29],[405,9,405,29],[406,9,406,29],[407,9,407,29],[408,9,408,29],[420,30,420,37],[420,38,420,47],[420,48,420,60],[421,30,421,37],[349,0,349,60],[397,0,398,8],[397,9,397,29],[397,30,398,37],[397,38,398,47],[397,48,398,60],[398,9,398,14],[398,15,398,19],[398,20,398,23],[398,24,398,29],[395,0,395,8],[395,9,395,29],[395,30,395,37],[395,38,395,47],[395,48,395,60],[396,0,396,8],[396,9,396,29],[396,30,396,37],[396,38,396,47],[396,48,396,60],[393,0,393,8],[393,9,393,29],[393,30,393,37],[393,38,393,47],[393,48,393,60],[394,0,394,8],[394,9,394,29],[394,30,394,37],[394,38,394,47],[394,48,394,60],[391,0,391,8],[391,9,391,29],[391,30,391,37],[391,38,391,47],[391,48,391,60],[392,0,392,8],[392,9,392,29],[392,30,392,37],[392,38,392,47],[392,48,392,60],[389,0,389,8],[389,9,389,29],[389,30,389,37],[389,38,389,47],[389,48,389,60],[390,0,390,8],[390,9,390,29],[390,30,390,37],[390,38,390,47],[390,48,390,60],[387,0,387,8],[387,9,387,29],[387,30,387,37],[387,38,387,47],[387,48,387,60],[388,0,388,8],[388,9,388,29],[388,30,388,37],[388,38,388,47],[388,48,388,60],[385,0,385,8],[385,9,385,29],[385,30,385,37],[385,38,385,47],[385,48,385,60],[386,0,386,8],[386,9,386,29],[386,30,386,37],[386,38,386,47],[386,48,386,60],[383,0,383,8],[383,9,383,29],[383,30,383,37],[383,38,383,47],[383,48,383,60],[384,0,384,8],[384,9,384,29],[384,30,384,37],[384,38,384,47],[384,48,384,60],[381,0,381,8],[381,9,381,29],[381,30,381,37],[381,38,381,47],[381,48,381,60],[382,0,382,8],[382,9,382,29],[382,30,382,37],[382,38,382,47],[382,48,382,60],[379,0,379,8],[379,9,379,29],[379,30,379,37],[379,38,379,47],[379,48,379,60],[380,0,380,8],[380,9,380,29],[380,30,380,37],[380,38,380,47],[380,48,380,60],[377,0,377,8],[377,9,377,29],[377,30,377,37],[377,38,377,47],[377,48,377,60],[378,0,378,8],[378,9,378,29],[378,30,378,37],[378,38,378,47],[378,48,378,60],[375,0,375,8],[375,9,375,29],[375,30,375,37],[375,38,375,47],[375,48,375,60],[376,0,376,8],[376,9,376,29],[376,30,376,37],[376,38,376,47],[376,48,376,60],[374,0,374,8],[374,9,374,29],[374,30,374,37],[374,38,374,47],[374,48,374,60],[372,0,372,8],[372,9,372,29],[372,30,372,37],[372,38,372,47],[372,48,372,60],[373,0,373,8],[373,9,373,29],[373,30,373,37],[373,38,373,47],[373,48,373,60],[370,0,370,8],[370,9,370,29],[370,30,370,37],[370,38,370,47],[370,48,370,60],[371,0,371,8],[371,9,371,29],[371,30,371,37],[371,38,371,47],[371,48,371,60],[368,0,368,8],[368,9,368,29],[368,30,368,37],[368,38,368,47],[368,48,368,60],[369,0,369,8],[369,9,369,29],[369,30,369,37],[369,38,369,47],[369,48,369,60],[366,0,366,8],[366,9,366,29],[366,30,366,37],[366,38,366,47],[366,48,366,60],[367,0,367,8],[367,9,367,29],[367,30,367,37],[367,38,367,47],[367,48,367,60],[364,0,364,8],[364,9,364,29],[364,30,364,37],[364,38,364,47],[364,48,364,60],[365,0,365,8],[365,9,365,29],[365,30,365,37],[365,38,365,47],[365,48,365,60],[356,48,356,60],[357,0,357,8],[357,9,357,29],[357,30,357,37],[357,38,357,47],[357,48,357,60],[362,0,362,8],[362,9,362,29],[362,30,362,37],[362,38,362,47],[362,48,362,60],[363,0,363,8],[363,9,363,29],[363,30,363,37],[363,38,363,47],[363,48,363,60],[360,0,360,8],[360,9,360,29],[360,30,360,37],[360,38,360,47],[360,48,360,60],[361,0,361,8],[361,9,361,29],[361,30,361,37],[361,38,361,47],[361,48,361,60],[421,38,421,47],[421,48,421,60],[420,0,420,8],[421,0,421,8],[420,9,420,29],[421,9,421,29],[418,30,418,37],[418,38,418,47],[418,48,418,60],[419,30,419,37],[419,38,419,47],[419,48,419,60],[418,0,418,8],[419,0,419,8],[418,9,418,29],[419,9,419,29],[416,30,416,37],[416,38,416,47],[416,48,416,60],[417,30,417,37],[417,38,417,47],[417,48,417,60],[416,0,416,8],[417,0,417,8],[416,9,416,29],[417,9,417,29],[414,30,414,37],[414,38,414,47],[414,48,414,60],[415,30,415,37],[415,38,415,47],[415,48,415,60],[414,0,414,8],[415,0,415,8],[414,9,414,29],[415,9,415,29],[412,30,412,37],[412,38,412,47],[412,48,412,60],[413,30,413,37],[413,38,413,47],[413,48,413,60],[412,0,412,8],[413,0,413,8],[412,9,412,29],[413,9,413,29],[431,0,431,8],[431,10,431,23],[429,30,429,37],[429,38,429,47],[429,48,429,60],[429,0,429,8],[429,9,429,29],[428,0,428,8],[428,9,428,29],[428,30,428,37],[428,38,428,47],[428,48,428,60],[426,30,426,37],[426,38,426,47],[426,48,426,60],[427,30,427,37],[427,38,427,47],[427,48,427,60],[426,0,426,8],[427,0,427,8],[426,9,426,29],[427,9,427,29],[424,30,424,37],[424,38,424,47],[424,48,424,60],[425,30,425,37],[425,38,425,47],[425,48,425,60],[424,0,424,8],[425,0,425,8],[424,9,424,29],[425,9,425,29],[422,30,422,37],[422,38,422,47],[422,48,422,60],[423,30,423,37],[423,38,423,47],[423,48,423,60],[422,0,422,8],[423,0,423,8],[422,9,422,29],[423,9,423,29],[411,30,411,37],[411,38,411,47],[411,48,411,60],[410,0,410,8],[411,0,411,8],[410,9,410,29],[411,9,411,29],[408,30,408,37],[408,38,408,47],[408,48,408,60],[409,30,409,37],[409,38,409,47],[409,48,409,60],[408,0,408,8],[409,0,409,8],[409,9,409,29],[355,0,355,8],[355,9,355,29],[355,30,355,37],[355,38,355,47],[355,48,355,60],[358,0,358,8],[358,9,358,29],[358,30,358,37],[358,38,358,47],[358,48,358,60],[359,0,359,8],[359,9,359,29],[359,30,359,37],[359,38,359,47],[359,48,359,60],[356,0,356,8],[350,0,350,8],[350,9,350,29],[350,30,350,37],[350,38,350,47],[350,48,350,60],[336,0,336,29],[331,30,331,34],[331,35,331,41],[331,42,331,49],[331,50,331,54],[331,55,331,60],[336,55,336,60],[336,50,336,54],[336,42,336,49],[336,35,336,41],[336,30,336,34],[410,30,410,37],[410,38,410,47],[410,48,410,60],[352,0,352,8],[352,9,352,29],[352,30,352,37],[352,38,352,47],[352,48,352,60],[353,0,353,8],[353,9,353,29],[353,30,353,37],[353,38,353,47],[353,48,353,60],[356,9,356,29],[356,30,356,37],[356,38,356,47],[325,55,325,60],[332,55,332,60],[327,0,327,29],[328,0,328,29],[329,0,329,29],[328,30,328,34],[328,35,328,41],[328,55,328,60],[335,30,335,34],[335,35,335,41],[335,42,335,49],[335,50,335,54],[335,55,335,60],[334,30,334,34],[334,35,334,41],[334,42,334,49],[334,50,334,54],[333,0,333,29],[332,30,332,34],[332,35,332,41],[332,42,332,49],[334,0,334,29],[335,0,335,29],[306,0,306,29],[306,30,306,34],[306,35,306,41],[306,42,306,49],[310,35,310,41],[310,42,310,49],[310,50,310,54],[310,55,310,60],[309,0,309,29],[309,30,309,34],[309,35,309,41],[309,42,309,49],[309,50,309,54],[309,55,309,60],[313,30,313,34],[313,35,313,41],[313,42,313,49],[313,50,313,54],[313,55,313,60],[306,50,306,54],[306,55,306,60],[307,0,307,29],[307,30,307,34],[307,35,307,41],[307,42,307,49],[307,50,307,54],[307,55,307,60],[308,0,308,29],[308,30,308,34],[308,35,308,41],[308,42,308,49],[308,50,308,54],[308,55,308,60],[487,0,487,60],[488,51,488,60],[488,41,488,50],[488,0,488,40],[354,9,354,29],[354,30,354,37],[354,38,354,47],[354,48,354,60],[321,30,321,34],[321,35,321,41],[321,42,321,49],[321,50,321,54],[317,30,317,34],[321,55,321,60],[322,0,322,29],[322,30,322,34],[322,35,322,41],[322,42,322,49],[316,42,316,49],[316,50,316,54],[316,55,316,60],[315,0,315,29],[315,30,315,34],[315,35,315,41],[315,42,315,49],[315,50,315,54],[315,55,315,60],[311,0,311,29],[311,30,311,34],[311,35,311,41],[311,42,311,49],[489,41,489,50],[489,51,489,60],[489,2,489,25],[489,0,489,1],[489,26,489,40],[318,0,318,29],[326,0,326,29],[320,0,320,29],[319,0,319,29],[321,0,321,29],[324,0,324,29],[326,30,326,34],[326,35,326,41],[326,42,326,49],[326,50,326,54],[323,30,323,34],[323,35,323,41],[325,0,325,29],[323,42,323,49],[323,50,323,54],[328,42,328,49],[328,50,328,54],[323,55,323,60],[324,30,324,34],[324,35,324,41],[324,42,324,49],[324,50,324,54],[324,55,324,60],[406,0,406,8],[351,38,351,47],[351,48,351,60],[354,0,354,8],[520,50,520,60],[521,0,521,49],[521,50,521,60],[522,0,522,49],[493,0,493,40],[494,2,494,40],[494,41,494,50],[494,51,494,60],[495,0,495,1],[495,2,495,40],[495,41,495,50],[495,51,495,60],[505,0,505,60],[506,0,506,60],[499,0,499,1],[499,41,499,50],[499,51,499,60],[515,17,515,49],[515,50,515,60],[516,17,516,49],[516,50,516,60],[508,0,508,60],[511,0,511,16],[512,0,514,16],[498,51,498,60],[500,0,500,1],[500,41,500,50],[497,0,497,60],[498,0,498,40],[502,0,502,40],[504,0,504,60],[498,41,498,50],[280,1,280,13],[281,1,281,13],[278,14,278,18],[281,14,281,18],[300,0,300,29],[299,0,299,29],[283,4,283,40],[281,19,281,41],[284,0,284,29],[285,0,285,29],[284,30,285,60],[287,0,287,29],[288,0,288,29],[290,0,290,29],[297,0,297,29],[297,30,297,34],[297,35,297,41],[297,42,297,49],[297,50,297,54],[297,55,297,60],[299,55,299,60],[281,42,281,48],[281,49,281,55],[282,14,282,18],[282,19,282,41],[282,42,282,48],[282,49,282,55],[282,1,282,13],[294,50,294,54],[294,55,294,60],[280,56,282,59],[278,19,278,41],[278,42,278,48],[278,49,278,55],[279,14,279,18],[279,19,279,41],[279,42,279,48],[279,49,279,55],[280,14,280,18],[280,19,280,41],[280,42,280,48],[280,49,280,55],[276,14,276,18],[276,19,276,41],[276,42,276,48],[276,49,276,55],[277,14,277,18],[277,19,277,41],[277,42,277,48],[277,49,277,55],[276,1,276,13],[277,1,277,13],[274,56,275,59],[275,1,275,13],[275,14,275,18],[275,19,275,41],[275,42,275,48],[275,49,275,55],[267,0,267,60],[217,1,217,13],[217,20,217,32],[268,2,268,60],[272,1,273,13],[272,14,272,55],[272,56,273,59],[273,14,273,18],[273,19,273,41],[273,42,273,48],[273,49,273,55],[227,2,227,56],[228,2,228,56],[230,2,230,27],[230,31,230,56],[231,2,231,27],[231,31,231,56],[220,1,220,23],[218,1,218,13],[276,56,276,59],[277,56,279,59],[278,1,278,13],[279,1,279,13],[225,31,225,56],[274,1,274,13],[274,14,274,18],[274,19,274,41],[274,42,274,48],[274,49,274,55],[181,51,181,58],[182,4,182,6],[182,7,182,9],[182,10,182,15],[182,18,183,20],[193,37,194,48],[193,51,194,58],[194,4,194,6],[194,7,194,9],[194,10,194,15],[207,51,208,58],[208,4,208,6],[192,28,192,35],[192,37,192,48],[202,3,202,16],[202,24,202,49],[206,4,206,15],[206,18,206,20],[206,21,206,26],[206,28,206,35],[206,37,206,48],[207,10,207,15],[207,18,208,20],[225,2,225,27],[218,20,218,32],[216,1,216,9],[215,36,215,44],[216,48,216,51],[216,54,216,58],[153,1,153,41],[154,1,154,19],[157,50,157,55],[158,39,158,41],[158,46,158,54],[159,1,159,12],[159,15,159,26],[159,28,159,40],[188,24,188,49],[164,3,165,13],[164,14,165,24],[192,51,192,58],[193,4,193,6],[193,7,193,9],[193,10,193,15],[208,10,208,15],[201,3,201,10],[201,24,201,49],[173,0,173,60],[176,3,176,10],[176,24,176,49],[157,1,157,8],[157,39,157,42],[157,44,157,47],[216,30,216,33],[216,36,216,45],[215,54,215,58],[215,48,215,51],[192,18,192,20],[192,21,192,26],[115,11,115,58],[136,1,136,18],[138,0,138,60],[139,0,139,60],[140,1,140,18],[141,1,142,15],[141,19,141,39],[141,43,141,58],[142,19,142,39],[142,43,142,58],[154,22,154,39],[154,42,154,58],[147,48,147,55],[149,1,149,16],[149,17,149,30],[149,48,149,55],[151,1,151,23],[151,24,151,30],[151,48,151,55],[143,2,143,14],[143,19,143,39],[143,43,143,58],[118,1,118,3],[118,5,118,10],[131,1,131,18],[133,1,135,29],[133,31,133,39],[133,41,133,58],[135,31,135,39],[114,11,114,58],[115,3,115,10],[0,6,0,60],[1,6,1,60],[9,0,9,34],[10,0,10,34],[12,7,12,34],[12,0,12,5],[3,42,3,60],[14,0,14,5],[14,7,15,7],[14,9,15,9],[14,10,15,10],[14,12,15,12],[7,0,8,34],[15,0,15,5],[14,21,15,21],[9,36,10,60],[15,36,23,60],[17,9,17,11],[20,9,20,20],[12,36,12,60],[13,36,14,60],[36,1,36,22],[27,1,27,7],[24,0,24,16],[25,0,25,60],[27,10,27,60],[28,10,28,60],[56,39,56,48],[62,1,66,13],[54,1,58,13],[14,33,15,33],[14,34,15,34],[16,30,16,34],[16,20,16,23],[14,22,15,22],[14,23,15,23],[14,25,15,25],[14,27,15,27],[14,28,15,28],[16,27,16,28],[16,24,16,26],[102,3,102,10],[102,11,102,58],[105,3,105,10],[105,11,105,58],[52,50,52,58],[50,41,50,59],[80,15,80,25],[80,27,80,37],[80,39,80,48],[80,50,80,58],[93,1,93,22],[56,50,56,58],[72,15,72,25],[72,27,72,37],[56,15,56,25],[56,27,56,37],[50,27,50,40],[21,0,21,21],[22,0,22,7],[23,0,23,21],[31,1,31,16],[30,1,30,59],[32,1,35,59],[14,13,15,13],[14,15,15,15],[14,16,15,16],[14,17,15,17],[14,18,15,18],[14,20,15,20],[14,30,15,30],[48,2,48,19],[49,0,49,15],[16,6,16,8],[17,6,17,8],[18,6,18,8],[16,9,16,11],[16,12,16,14],[17,12,17,14],[17,27,17,28],[17,24,17,26],[18,12,18,14],[16,15,16,18],[17,20,17,23],[18,20,18,23],[19,20,19,23],[20,0,20,7],[17,30,17,34],[18,30,18,34],[17,15,17,18],[19,30,19,34],[14,31,15,31],[14,32,15,32],[295,0,295,29],[296,0,296,29],[296,30,296,34],[296,35,296,41],[296,42,296,49],[296,50,296,54],[296,55,296,60],[294,0,294,29],[286,30,289,60],[289,0,289,16],[289,17,289,18],[291,0,292,54],[291,55,291,60],[292,55,292,60],[293,0,293,60],[294,30,294,34],[294,35,294,41],[294,42,294,49],[295,30,295,49],[295,50,295,60],[301,42,301,49],[301,50,301,54],[301,55,301,60],[298,0,298,29],[298,30,298,34],[298,35,298,41],[298,42,298,49],[298,50,298,54],[298,55,298,60],[300,30,300,34],[300,35,300,41],[300,42,300,49],[300,50,300,54],[300,55,300,60],[299,30,299,34],[299,35,299,41],[299,42,299,49],[299,50,299,54],[301,0,301,29],[301,30,301,34],[301,35,301,41],[302,0,302,29],[302,30,302,34],[302,35,302,41],[302,42,302,49],[302,50,302,54],[302,55,302,60],[303,0,303,29],[303,30,303,34],[303,35,303,41],[303,42,303,49],[303,50,303,54],[303,55,303,60],[164,25,165,35],[164,36,165,46],[164,47,164,57],[165,47,165,57],[166,47,168,57],[167,4,167,13],[167,16,167,23],[167,26,167,34],[167,36,167,46],[181,4,181,15],[181,18,181,20],[181,21,181,26],[181,28,181,35],[181,37,181,48],[170,3,171,58],[234,0,265,59],[182,51,183,58],[183,4,183,6],[183,7,183,9],[183,10,183,15],[311,50,311,54],[316,0,316,29],[311,55,311,60],[310,0,310,29],[310,30,310,34],[314,0,314,29],[314,30,314,34],[314,35,314,41],[314,42,314,49],[314,50,314,54],[314,55,314,60],[312,0,312,29],[312,30,312,34],[312,35,312,41],[312,42,312,49],[312,50,312,54],[312,55,312,60],[313,0,313,29],[403,30,403,37],[403,38,403,47],[7,36,8,60],[21,22,21,29],[29,1,29,59],[37,1,46,59],[145,40,145,58],[147,1,147,27],[147,28,147,35],[147,38,147,45],[177,3,177,16],[177,24,177,49],[155,1,155,19],[155,22,155,39],[155,42,155,58],[156,1,156,9],[156,10,156,16],[156,29,156,32],[304,0,304,29],[304,30,304,34],[304,35,304,41],[304,42,304,49],[304,50,304,54],[304,55,304,60],[305,0,305,29],[305,30,305,34],[305,35,305,41],[305,42,305,49],[305,50,305,54],[305,55,305,60],[316,30,316,34],[316,35,316,41],[64,50,64,58],[78,1,82,13],[50,0,50,12],[50,13,50,25],[52,1,52,13],[52,15,52,25],[52,27,52,37],[135,41,135,58],[159,42,159,58],[329,55,329,60],[330,0,330,29],[330,30,330,34],[330,35,330,41],[330,42,330,49],[330,50,330,54],[330,55,330,60],[317,50,317,54],[52,39,52,48],[64,15,64,25],[64,27,64,37],[64,39,64,48],[182,21,183,26],[182,28,183,35],[182,37,183,48],[199,19,199,49],[187,3,187,10],[187,24,187,49],[322,50,322,54],[322,55,322,60],[323,0,323,29],[317,0,317,29],[320,30,320,34],[402,30,402,37],[402,38,402,47],[402,48,402,60],[317,35,317,41],[317,42,317,49],[318,50,318,54],[318,55,318,60],[326,55,326,60],[327,30,327,34],[327,35,327,41],[327,42,327,49],[327,50,327,54],[327,55,327,60],[329,50,329,54],[333,30,333,34],[333,35,333,41],[329,30,329,34],[329,35,329,41],[320,35,320,41],[320,42,320,49],[320,50,320,54],[320,55,320,60],[319,30,319,34],[319,35,319,41],[319,42,319,49],[319,50,319,54],[319,55,319,60],[329,42,329,49],[325,30,325,34],[325,35,325,41],[325,42,325,49],[325,50,325,54],[188,3,188,16],[88,27,88,37],[88,39,88,48],[103,3,103,10],[103,11,103,58],[104,3,104,10],[104,11,104,58]],"merged_total":1235,"flags":["merged_cut"]}
[null,null,null,null,null,null,"MINISTERUL AGRICULTURII ŞI DEZVOLTĂRII RURALE"]
[null,null,null,null,null,null,"AGENŢIA PENTRU FINANŢAREA INVESTIŢIILOR RURALE"]
[]
[null,null,null,null,null,null,null,null,"ASOCIAȚIA GAL ",null,null,null,null,null,null,null,"VALEA ȘOMUZULUI ",null,null,null,null,null,null,null,null,null,null,null,null,null,null,null,null,null,null,null,null,null,null,null,null,null,"SECŢIUNE GENERALĂ"]
[null,null,null,null,null,null,null,null,"MĂSURA 1/2B- SPRIJINIREA TINERILOR FERMIERI",null,null,null,null,"M3/2B INSTALAREA T",null,null,null,null,null,null,null,null,"TÂNĂRULUI FERMIER"]
[]
[]
["DATE DE ÎNREGISTRARE",null,null,null,null,null,null,null,null,null,null,null,null,null,null,null,null,null,null,null,null,null,null,null,null,null,null,null,null,null,null,null,null,null,null,null,"NUME ŞI PRENUME DIRECTOR OJFIR"]
[]
["Se completează de către Agenția pentru Finanțarea Investițiilor Rurale -Oficiul"]
["Judeţean- Programul FEADR pentru cereri de finanţare"]
[]
["OJFIR",null,null,null,null,null,null,null,null,null,null,null,null,null,null,null,null,null,null,null,null,null,null,null,null,null,null,null,null,null,null,null,null,null,null,null,"Semnătura Director OJFIR"]
[null,null,null,null,null,null,null,null,null,null,null,null,null,null,null,null,null,null,null,null,null,null,null,null,null,null,null,null,null,null,null,null,null,null,null,null,"Ştampila OJFIR"]
["Număr "]
["înregistrare"]
[]
[]
[]
[]
["Data Înregistrării"]
["Numele şi prenumele persoanei care înregistrează",null,null,null,null,null,null,null,null,null,null,null,null,null,null,null,null,null,null,null,null,null,"Semnătura:"]
[]
["Data primirii cererii de finanţare la contractare:"]
["Se completează de către solicitant"]
["A PREZENTARE GENERALĂ"]
[]
[null,"A1 Măsura",null,null,null,null,null,null,null,null,"Submăsura 19.2 - MĂSURA M3/2B- INSTALAREA TÂNĂRULUI FERMIER"]
[]
[null,"A2 Nume prenume / Denumire solicitant:"]
[]
[null,"A3 Titlu proiect:"]
[]
[]
[]
[]
[null,"A4 Descrierea succintă a proiectului:"]
[]
[]
[]
[]
[]
[]
[]
[]
[]
[]
[]
[null,null,"A5 Amplasarea proiectului:"]
[]
["Regiunea de dezvoltare:",null,null,null,null,null,null,null,null,null,null,null,null,null,null,null,null,null,null,null,null,null,null,null,null,null,null,"Judeţ:"]
[]
[null,"Obiectivele investiţiei",null,null,null,null,null,null,null,null,null,null,null,null,null,"Judeţ",null,null,null,null,null,null,null,null,null,null,null,"Comună/Oraş",null,null,null,null,null,null,null,null,null,null,null,"Sat/Sector",null,null,null,null,null,null,null,null,null,null,"Sat/Sector"]
[]
[]
[]
[]
[]
[]
[]
[]
[]
[]
[]
[]
[]
[]
[]
[]
[]
[]
[]
[]
[]
[]
[]
[]
[]
[]
[]
[]
[]
[]
[]
[]
[]
[]
[]
[]
[]
[]
[]
[]
[null,"A6. Tipul zonei"]
[]
[null,null,null,"Normală",null,null,null,null,null,null,null,"Montană",null,null,null,null,null,null,null,"Zona ITI Delta Dunării"]
[]
[]
[null,"A7",null,null,null,null,"Declar pe proprie răspundere că nu am accesat PNA 2014-2016;"]
[null,null,null,null,null,null,"Declar pe propria răspundere că am accesat PNA 2014-2016 şi am beneficiat de finanţare pentru\n"]
[null,null,null,null,null,null,"următoarele achiziţii (pentru care nu voi solicita finanţare din PNDR 2014-2020 ):"]
[null,null,null,"Anul accesării:",null,null,null,null,null,null,null,null,"Produs achiziţionat:"]
[]
[]
[]
[]
[]
[null,null,null,null,null,null,"Declar pe proprie răspundere că nu voi accesa PNA 2017-2019 între momentul depunerii Cererii de"]
[null,null,null,null,null,null,"Finanţare la PNDR 2014-2020 şi momentul acordării celei de-a doua tranşe de plată din PNDR 2014-2020;"]
[null,null,null,null,null,null,"Declar pe propria răspundere că nu voi solicita finanţare din PNDR 2014-2020 pentru următoarele achiziţii\n"]
[null,null,null,null,null,null,"pe care intenţionez să le decontez prin accesarea PNA 2017-2019:"]
[null,null,null,"Anul accesării:",null,null,null,null,null,null,null,null,"Produs achiziţionat:"]
[]
[]
[]
[]
[]
[null,"A8 Total punctaj pentru criteriile de selectie indeplinite"]
[null,null,null,null,null,"Punctaj"]
[null,null,null,null,null,"Detalierea criteriilor de selecţie îndeplinite:"]
[]
[]
[]
[]
[]
[]
[]
[null,"Denumire consultant:"]
[null,null,null,null,null,null,null,null,null,null,null,null,null,null,null,null,null,null,null,null,null,null,null,null,null,null,null,null,null,null,null,"CUI"]
[]
[null,null,null,null,null,null,null,null,null,null,null,null,null,null,null,null,null,null,null,null,null,null,null,null,null,null,null,null,null,null,null,"Nr Înreg. ONRC"]
[]
[null,"Denumire proiectant:"]
[null,null,null,null,null,null,null,null,null,null,null,null,null,null,null,null,null,null,null,null,null,null,null,null,null,null,null,null,null,null,null,"CUI"]
[]
[null,null,null,null,null,null,null,null,null,null,null,null,null,null,null,null,null,null,null,null,null,null,null,null,null,null,null,null,null,null,null,"Nr Înreg. ONRC"]
[]
[]
["B INFORMAŢII PRIVIND SOLICITANTUL"]
["B1 Descrierea solicitantului"]
[null,"B1.1 Informaţii privind solicitantul"]
[null,"Data înființării",null,null,null,null,null,null,null,null,null,null,null,null,null,null,null,null,null,"Cod Unic de Înregistrare și/sau Codul de",null,null,null,null,null,null,null,null,null,null,null,null,null,null,null,null,null,null,null,null,null,null,null,"Statut juridic al solicitantului"]
[null,null,null,null,null,null,null,null,null,null,null,null,null,null,null,null,null,null,null,"Înregistrare Fiscală"]
[]
[]
[null,"Număr de înregistrare în registrul comerțului"]
[]
[null,"Codurile CAEN ale activităţilor finanţate prin proiect"]
[]
[null,"Codul unic de înregistrare APIA",null,null,null,null,null,null,null,null,null,null,null,null,null,null,null,null,null,null,null,null,null,null,null,null,null,null,null,null,null,null,null,null,null,null,"Anul atribuirii codului"]
[]
[null,"Cod Registru Naţional al Exploataţiilor ANSVSA",null,null,null,null,null,null,null,null,null,null,null,null,null,null,null,null,null,null,null,null,null,null,null,null,null,null,null,null,null,null,null,null,null,null,"Anul atribuirii codului"]
[]
[null,"B1.2 Sediul social / Domiciliul stabil al solicitantului / Reşedinţa din România"]
[null,"Judeţ",null,null,null,null,null,null,null,null,null,null,null,null,null,null,null,null,null,null,null,null,"Localitate",null,null,null,null,null,null,null,null,null,null,null,null,null,null,null,null,null,null,null,"Sat"]
[]
[null,"Cod Poştal",null,null,null,null,null,null,null,null,"Strada",null,null,null,null,null,null,null,null,null,null,null,null,null,null,null,null,null,null,"Nr.",null,null,null,null,"Bloc",null,null,null,null,"Scara",null,null,null,null,"Etaj",null,null,null,null,null,"Apartament"]
[]
[null,"Telefon fix",null,null,null,null,null,null,null,null,null,null,null,null,null,"Telefon mobil",null,null,null,null,null,null,null,null,null,null,null,null,"Fax",null,null,null,null,null,null,null,null,null,null,null,null,null,"E-mail"]
[]
[]
[null,"B1.3 Numele şi prenumele reprezentantului legal şi funcţia acestuia în cadrul organizaţiei, precum şi"]
[null,"specimenul de semnatură:"]
[]
[null,null,null,"Nume",null,null,null,null,null,null,null,null,null,null,"Prenume",null,null,null,null,null,null,null,null,null,null,"Funcţia",null,null,null,null,null,null,null,null,null,null,"Reprezentant legal",null,null,null,null,null,null,null,null,null,null,"Specimen de"]
[null,null,null,null,null,null,null,null,null,null,null,null,null,null,null,null,null,null,null,null,null,null,null,null,null,null,null,null,null,null,null,null,null,null,null,null,null,null,null,null,null,null,null,null,null,null,null,"semnătură"]
[]
[null,null,null,null,null,null,null,null,null,null,null,null,null,null,null,null,null,null,null,null,null,null,null,null,null,null,null,null,null,null,null,null,null,null,null,null,"LEGAL"]
[]
[null,null,null,"Studii şi coordonate"]
[]
[]
[]
["B2 Informaţii referitoare la reprezentantul legal de proiect"]
[null,"B2.1 Date de identitate ale reprezentantului legal de proiect (asociat unic/ asociat/ administrator) şi asociaţi:"]
[]
[null,null,null,"Data naşterii",null,null,null,null,null,null,null,null,null,null,null,null,null,null,null,null,null,null,null,null,"Cod numeric personal"]
[]
[]
[]
[]
[null,null,null,null,"Act de identitate",null,null,null,null,null,null,null,null,null,null,null,null,null,"Seria",null,null,"Nr.",null,null,null,null,null,null,"Eliberat la data de",null,null,null,null,null,null,null,null,"de:",null,null,null,null,null,null,null,null,null,null,null,null,null,"Valabil până la:"]
[null,null,null,null,"B.I.",null,null,"C.I.",null,null,"Paşaport"]
[]
[]
[null,"Date de identitate ale soţului/soţiei:"]
[]
[null,null,null,"Data naşterii",null,null,null,null,null,null,null,null,null,null,null,null,null,null,null,null,null,null,null,null,"Cod numeric personal"]
[]
[]
[]
[]
[null,null,null,null,"Act de identitate",null,null,null,null,null,null,null,null,null,null,null,null,null,"Seria",null,null,"Nr.",null,null,null,null,null,null,"Eliberat la data de",null,null,null,null,null,null,null,null,"de:",null,null,null,null,null,null,null,null,null,null,null,null,null,"Valabil până la:"]
[null,null,null,null,"B.I.",null,null,"C.I.",null,null,"Paşaport"]
[]
[]
[null,null,null,null,null,"Asociat unic",null,null,null,null,null,null,null,null,null,null,null,null,null,"Asociat majoritar",null,null,null,null,null,null,null,null,null,null,null,null,null,"Administrator"]
[]
[null,"Asociați"]
[null,null,null,"Nume şi prenume asociat:"]
[]
[null,null,null,"Data naşterii",null,null,null,null,null,null,null,null,null,null,null,null,null,null,null,null,null,null,null,null,"Cod numeric personal"]
[]
[]
[]
[]
[null,null,null,null,"Act de identitate",null,null,null,null,null,null,null,null,null,null,null,null,null,"Seria",null,null,"Nr.",null,null,null,null,null,null,"Eliberat la data de",null,null,null,null,null,null,null,null,"de:",null,null,null,null,null,null,null,null,null,null,null,null,null,"Valabil până la:"]
[null,null,null,null,"B.I.",null,null,"C.I.",null,null,"Paşaport"]
[]
[]
[]
[]
[null,"B2.2 Domiciliul stabil al reprezentantului legal de proiect"]
[null,"Judeţ",null,null,null,null,null,null,null,null,null,null,null,null,null,null,null,null,null,null,null,null,"Localitate",null,null,null,null,null,null,null,null,null,null,null,null,null,null,null,null,null,null,null,"Sat"]
[]
[null,"Cod Poştal",null,null,null,null,null,null,null,null,null,null,"Strada",null,null,null,null,null,null,null,null,null,null,null,null,null,null,null,null,null,"Nr.",null,null,null,null,null,"Bloc",null,null,null,null,null,null,null,null,null,null,null,"Scara",null,null,null,null,null,"Ap."]
[]
[null,"Telefon fix",null,null,null,null,null,null,null,null,null,null,null,null,null,null,null,null,null,null,"Telefon mobil",null,null,null,null,null,null,null,null,null,null,null,null,null,null,null,null,null,"Fax"]
[]
[null,"E-mail"]
[]
[]
["B3 Informaţii privind contul bancar pentru proiect F.E.A.D.R."]
[]
[null,null,"B3.1 Denumirea Băncii",null,null,null,null,null,null,null,null,null,null,null,null,null,null,null,null,null,null,null,null,null,null,null,null,null,null,null,null,"Denumirea Sucursalei/Filialei"]
[]
[]
[null,null,"B3.2 Adresa Băncii/Sucursalei"]
[]
[]
[null,null,"B3.3 Cod IBAN",null,null,null,null,null,null,null,null,null,null,null,null,null,null,null,null,null,null,null,null,null,null,null,null,null,null,null,null,"B3.4 Titularul contului bancar"]
[]
[]
[]
["REGULI DE COMPLETARE\n\nLa punctul D, Alte informaţii: Programarea proiectului, se va introduce numărul de luni de implementare a\nproiectului.\n\nLa punctul E. Lista documentelor anexate, se vor bifa documentele aferente tipului de proiect şi de solicitant, iar in ultima coloană a tabelului se vor menţiona paginile între care se găseste documentul respectiv în dosarul cererii de finanţare.\nTrebuie bifate toate documentele de pe coloana “Obligatoriu pentru toate proiectele”.\n\nSe vor completa celulele albe din tabelul privind stabilirea categoriei de fermă cu suprafeţele/numărul de capete aferent culturii/speciei, iar calculul valorii productiei standard (SO) se va efectua automat.\n\nSe va completa Declaraţia pe propria răspundere a solicitantului cu datele solicitate (denumire/nume prenume solicitant, titlul proiectului), şi se vor bifa toate angajamentele menţionate în cuprinsul acesteia.\n\nCâmpul Studii şi coordonate se va completa cu: competentele şi aptitudinile profesionale îndeplinite.\n\nTrebuie bifate şi anexate toate documentele de pe coloana “DEPUNERE-Obligatoriu pentru toate proiectele” din secțiunea E - Lista documentelor anexate.\n"]
[]
[]
[]
[]
[]
[]
[]
[]
[]
[]
[]
[]
[]
[]
[]
[]
[]
[]
[]
[]
[]
[]
[]
[]
[]
[]
[]
[]
[]
[]
[]
[]
["C FINANȚĂRI NERAMBURSABILE solicitate şi/sau obţinute"]
[null,null,"C. Solicitatul a mai obtinut finanţări nerambursabile ? Dacă Da, detaliaţi cu datele solicitate în tabelul de mai jos"]
[]
[null,null,null,null,null,null,null,null,null,null,"DA",null,null,null,null,null,null,null,"NU"]
[]
[null,"DENUMIRE PROGRAM FINANȚARE",null,null,null,null,null,null,null,null,null,null,null,null,"DA",null,null,null,null,null,null,null,null,null,null,null,null,null,null,null,null,null,null,null,null,null,null,null,null,null,null,null,null,null,null,null,null,null,null,null,null,null,null,null,null,null,"NU"]
[null,null,null,null,null,null,null,null,null,null,null,null,null,null,"Număr proiecte",null,null,null,null,"Titlul Proiectui și numărul contractului de finanțare ",null,null,null,null,null,null,null,null,null,null,null,null,null,null,null,null,null,null,null,null,null,null,"Data finalizării\nll/zz/aaaa",null,null,null,null,null,null,"Valoarea\nsprijinului\n(EUR)"]
[null,"Program Naţional Apicol (PNA)"]
[null,"Program Naţional de Sprijin al României în Sectorul vitivinicol (PNS)"]
[null,"FEADR*"]
[null,"Alte programe europene*"]
[null,"Alte programe europene*"]
[null,"Alte programe europene*"]
[null,"Alte programe internaţionale*"]
[null,"Alte programe internaţionale*"]
[null,"Alte programe internaţionale*"]
[null,null,null,null,"\n* se completează de către solicitant cu denumirea programului"]
["MINISTERUL AGRICULTURII ŞI DEZVOLTĂRII RURALE",null,null,null,null,null,null,null,null,null,null,null,null,null,null,null,null,null,null,null,null,null,null,null,null,null,null,null,null,null,"SECTIUNE SPECIFICĂ MASURA 1"]
["AGENŢIA PENTRU FINANŢAREA INVESTIŢIILOR RURALE"]
[]
["D. ALTE INFORMAȚII :"]
["Programarea proiectului:"]
["Numar luni de implementare"]
[]
["E. LISTA DOCUMENTELOR ANEXATE PROIECTELOR AFERENTE MĂSURII 1 ",null,null,null,null,null,null,null,null,null,null,null,null,null,null,null,null,null,null,null,null,null,null,null,null,null,null,null,null,null,null,null,null,null,null,null,null,null,null,null,null,null,null,null,null,null,null,null,null,null,null,null,null,null,null,"OPIS"]
[null,null,null,null,null,null,null,null,null,null,null,null,null,null,null,null,null,null,null,null,null,null,null,null,null,null,null,null,null,null,null,null,null,null,null,null,null,null,null,null,null,null,null,null,null,null,null,null,null,null,null,null,null,null,null,"documente"]
["A  se anexa documentele în ordinea de mai jos:"]
["Lista documente",null,null,null,null,null,null,null,null,null,null,null,null,null,null,null,null,null,null,null,null,null,null,null,null,null,null,null,null,null,"Obligatoriu pentru toate proiectele",null,null,null,null,"Obligatoriu, dacă proiectul impune",null,null,null,null,null,null,"PAGINA de   la - până la",null,null,null,null,null,null,null,"Obligatoriu pentru toate proiectele",null,null,null,null,"Obligatoriu, dacă proiectul impune"]
["Documente specifice etapei:",null,null,null,null,null,null,null,null,null,null,null,null,null,null,null,null,null,null,null,null,null,null,null,null,null,null,null,null,null,"DEPUNERE",null,null,null,null,null,null,null,null,null,null,null,null,null,null,null,null,null,null,null,"CONTRACTARE"]
["1. Plan de afaceri pentru dezvoltarea exploataţiei"]
["2. Documente proprietate/folosinta pentru exploataţia agricola, documente obligatoriu de prezentat la depunerea cererii de finanţare\na) Documente solicitate pentru terenul agricol:\n● document care atestă dreptul de proprietate asupra terenului agricol conform legislaţiei în vigoare (contract de vânzare - cumpărare autentificat de notar, act de donaţie autentificat de notar, hotarâre judecatorească definitivă şi irevocabilă cu punere în posesie, certificat de moştenitor unic autentificat de notar şi alte documente care demonstrează terţilor dreptul de proprietate conform legislaţiei în vigoare autentificate la notar)"]
["si/sau\n● tabel centralizator - emis de Primărie, semnat de persoanele autorizate conform legii, (conţinând sumarul contractelor de arendare la data depunerii Cererii de Finanţare), cu suprafeţele luate în arendă pe categorii de folosinţă"]
["si/sau\n● contract de concesionare, valabil la data depunerii Cererii de Finanţare, însoţit de adresa emisă de concedent care conţine situaţia privind respectarea clauzelor contractuale, dacă este în graficul de realizare a investiţiilor prevăzute în contract şi alte clauze;"]
["şi/sau\n● contractul de comodat/ contractul de închiriere/ documentul potrivit căruia suprafaţa de teren a fost temporar în administrare/ folosinţă."]
["● documente pentru terenul ce constituie vatra stupinei – acte de proprietate conform legislaţiei în vigoare, sau contract de concesiune/ contract de arendă/ închiriere/ comodat valabile la momentul depunerii cererii de finanţare.\nSuprafaţa de teren eligibilă pentru vatra stupinei este de minim 5 mp/stup şi 50 mp pentru fiecare pavilion apicol."]
["● În cazul exploataţiilor care presupun înfiinţarea şi/sau reconversia plantaţiilor pomicole, contractele care conferă dreptul de folosință (arendă, concesiune) asupra terenurilor agricole, pentru exploatații pomicole, să aibă o valabilitate de minimum 15 ani (excepție: pepinierele, culturile de căpșun, zmeur, mur, coacăz și agriș unde perioada minimă este de 10 ani), începând cu anul depunerii Cererii de Finanţare."]
["● Document notarial care atestă constituirea patrimoniului de afectaţiune."]
["b) Pentru construcţii permanente, conform prevederilor Legii nr.50/1991, cu modificările şi completările ulterioare:\n● documentul care atestă dreptul real principal asupra construcţiei: drept de proprietate, uz, uzufruct, superficie, servitute (dobândite prin:contract de vânzarecumpărare, de schimb, de donaţie, certificat de moştenitor, act administrativ de restituire, hotărâre judecătorească);"]
["c) Pentru construcţii provizorii, conform prevederilor Legii nr.50/1991, cu modificările şi completările ulterioare:\n● documentul care atestă dreptul real principal asupra construcţiei: drept de proprietate, uz, uzufruct, superficie, servitute (dobândite prin:contract de vânzarecumpărare, de schimb, de donaţie, certificat de moştenitor, act administrativ de restituire, hotărâre judecătorească);\n● documentul care atestă dreptul de creanţă asupra construcţiei dobândit prin: concesiune, comodat, locaţiune;\nÎn cazul prezentării contractului de comodat/locaţiune pentru construcţiile cu caracter provizoriu, conform prevederilor Legii 50/1991, cu modificările şi completările ulterioare, solicitantul trebuie să ataşeze şi acordul expres al proprietarului de drept.\n● documente care atestă: drept de proprietate, uz, uzufruct, superficie, servitute (dobândit prin: contract de vânzare-cumpărare, de schimb, de donaţie, certificat de moştenitor, act administrativ de restituire, hotărâre judecătorească) sau drept de creanţă asupra construcţiei dobândit prin: concesiune, comodat, locaţiune."]
["d) Documente solicitate pentru animale, păsări şi familii de albine:\n● extras din Registrul Exploataţiei emis de ANSVSA/ DSVSA/ Circumscripţia Veterinară (adeverinţă eliberată de medicul veterinar de circumscripţie) actualizat cu cel mult 30 zile calendaristice înaintea depuneri cereri de finanţare din care să rezulte: efectivul de animale deţinut, al păsărilor şi al familiilor de albine şi data primei înscrieri a solicitantului în Registrul Exploataţiei, însoţit de formular de mişcare ANSVSA/DSVSA (Anexa 4 din Normele sanitare veterinare ale Ordinului ANSVSA nr. 40/2010);"]
["● PAŞAPORTUL emis de ANZ pentru ecvideele (cabalinele) cu rasă şi origine."]
["e) Pentru exploataţiile vegetale: copie din Registrul agricol emis de Primării actualizată în anul depunerii cererii de finanţare care să confirme dreptul de folosinţă (proprietate/arendă/concesionare) al terenului/ fermei zootehnice/ animalelor (doar proprietate) înregistrate pentru baza de producţie, cu ştampila primăriei şi menţiunea \"Conform cu originalul\".\nPentru exploataţiile mixte şi zootehnice: copie din Registrul agricol emis de Primării actualizată cu cel mult 30 de zile înaintea depunerii cererii de finanţare care să confirme dreptul de folosinţă (proprietate/arendă/concesionare) al terenului/ fermei zootehnice/animalelor (doar proprietate) înregistrate pentru baza de producţie, cu ştampila primăriei şi menţiunea \"Conform cu originalul\".\nÎn situaţia în care primăriile nu pot elibera copia Registrului agricol cu situaţia curentă, se va depune copia ultimei înregistrari a registrului agricol însoţită de adeverinţă emisă de primărie privind situaţia curentă."]
["3. Copia Contractului de colectare a gunoiului de grajd încheiat între solicitant și deținătorul platformei/Copia Adeverinței emisă de Primăria Comunei pe teritoriul căreia se regăsește platforma comunală, din care să rezulte faptul că aceasta are capacitatea de preluare a gunoiului de grajd din exploatația solicitantului."]
["4. Copiile situaţiilor financiare pentru anii \"n\" şi \"n-1\", unde \"n\" este anul anterior anului în care solicitantul depune Cererea de Finanţare, înregistrate la Administraţia Financiară;\na) Pentru societăţi comerciale:\n-Bilanţul (cod 10);\n-Contul de profit şi pierderi (cod 20);\n-Datele informative (cod 30);\n-Situaţia activelor imobilizate (cod 40);"]
["şi/sau\n-Declaraţia de inactivitate înregistrată la Administraţia Financiară (cod S1046), în cazul solicitanţilor care de la constituire, nu au desfăşurat activitate pe o perioadă mai mare de un an fiscal."]
["b) Pentru persoane fizice autorizate, întreprinderi individuale şi întreprinderi familiale\n-Declaraţia privind veniturile realizate (Formularul 200 - cod 14.13.01,13)"]
["şi/sau\n-Declaraţia privind veniturile din activităţi agricole - impunere pe normele de venit (Formularul 221 - cod 14.13.01.13/9), în cazul solicitanţilor care în anii \"n\" şi \"n-1\" sunt autorizaţi conform OUG. 44/2008, cu modificările şi completările ulterioare."]
["5. Certificat care să ateste lipsa datoriilor restante fiscale şi sociale emise de Direcţia Generală a Finanţelor Publice, iar în cazul în care solicitantul este proprietar asupra imobilelor, se va depune Certificat emis de Primăria de pe raza cărora îşi au sediul social şi punctele de lucru,"]
["6. Copia actului de identitate pentru reprezentantul legal de proiect (asociat unic/asociat majoritar/administrator),"]
["7. Certificatul de înregistrare eliberat de Oficiul Registrului Comertului conform legislaţiei în vigoare,"]
["8. Hotărârea Adunării Generale a Acţionarilor (AGA) persoanei juridice, prin care se desemnează ca tânărul fermier (actionar majoritar 50%+1) să reprezinte societatea în relaţia cu AFIR și că exercită un control efectiv pe termen lung (pentru cel puţin 6 ani) în ceea ce priveşte deciziile referitoare la gestionare, beneficii, riscuri financiare în cadrul exploataţiei respective."]
["9.1. Solicitantul deține competențe și aptitudini profesionale, îndeplinind cel puțin una dintre următoarele condiții:\na). Studii medii/superioare în domeniul agricol/veterinar/economie agrară;\n-diplomă de absolvire studii superioare în domeniul agricol\nsau"]
["-diplomă de absolvire studii postliceale şi sau liceale în domeniul agricol;"]
["9.2 Certificat de calificare profesională care atestă urmarea unui curs de calificare în domeniul agricol, agro-alimentar, veterinar sau economie agrară de cel puţin Nivel 1 de calificare profesională, conform legislaţiei aplicabile la momentul acordării certificatului ;"]
["9.3.a) Competențe în domeniul agricol/veterinar/economie agrară dobândite prin participarea la programe de inițiere/ instruire/specializare care nu necesită un document eliberat de formatorii recunoscuţi de către ANC şi presupune un număr de ore sub numărul de ore aferent Nivelului I de calificare profesională (Nivelul I de calificare presupune 360 de ore de curs pentru cei care au urmat cursuri până la 1 ianuarie 2016, şi 80 de ore de curs pentru cei care au urmat cursuri după 1 ianuarie 2016); competențele în domeniile menționate vor fi dovedite prin prezentarea certificatului/ diplomei/ atestatului de absolvire a cursului sau a unui document echivalent acestora se acceptă şi certificatele de calificare eliberate de ANCA. In cazul în care, la depunerea Cererii de Finanțare nu este emis documentul de absolvire a cursului, va fi acceptată\nadeverința de absolvire a cursului sub condiţia prezentării certificatului/ diplomei/ atestatului de absolvire a cursului sau a unui document echivalent acestora în original pentru acordarea celei de-a doua tranşe de\nsprijin; în caz contrar, acesta va fi declarat neeligibil."]
["sau\nb) Recunoaşterea de către un centru de evaluare si certificare a competențelor profesionale obținute pe alte căi decât cele formale autorizat ANC a competenţelor dobândite ca urmare a experienţei profesionale;"]
["9.4. Angajamentul de a dobândi competențele profesionale adecvate într-o perioadă de grație de maximum 33 de luni de la data adoptării deciziei individuale de acordare a ajutorului, dar nu mai mult de ultima tranșă de plată;"]
["9.5. În cazul în care solicitantul a absolvit în ultimele 12 luni până la depunerea cererii de finanțare și nu poate prezenta diploma în original, poate fi acceptată o adeverință de absolvire a studiilor respective, însoțită de situația școlară disponibilă, sub condiția prezentării diplomei în original pentru acordarea celei de a doua tranșe de sprijin; în caz contrar, acesta va fi declarat neeligibil;\nI. În cazul solicitanţilor care nu au studii medii/superioare, aceştia prezintă diploma/ document doveditor (inclusiv suplimentul descriptiv al certificatelor de formare profesională atestate ANC care cuprind această informaţie) de absolvire a minim 8 clase."]
["II. Pentru demonstrarea criteriului de selecţie privind formarea profesională care conferă un nivel de calificare superior nivelului minim obligatoriu solicitat, se va prezenta actul doveditor (certificat de calificare) eliberat de un formator de formare profesională acreditat (recunoscut de Ministerul Educaţiei Naţionale) sau certificat de absolvire a cursului de calificare emis de ANCA, prin care se certifică competențele profesionale de minim Nivel 1 de calificare (Nivelul I de calificare presupune 360 de ore de curs pentru cei care au urmat cursuri până la 1 ianuarie 2016, şi 80 de ore de curs pentru cei care au urmat cursuri după 1 ianuarie 2016) în domeniul agricol, agro-alimentar, veterinar sau economie agrară, conform legislaţiei aplicabile la momentul acordării certificatului."]
["10. Cazierul judiciar in original (fără înscrieri privind sancțiuni economicofinanciare) al reprezentantului legal, valabil la data încheierii contractului."]
["12. În cazul studenţilor, adeverinţă de la instituţia de învăţământ din care să reiasă: anul de studiu, forma de învăţământ (cu frecvenţă/la zi sau fără frecvenţă, etc.) specializarea şi UAT-ul în care este situată unitatea de învăţământ frecventată;"]
["13. Document emis de ANSVSA, prin care se certifică înregistrarea exploatației comerciale de tip A, conform Ordinului ANSVSA nr. 16 din 16.03.2010"]
["14. Document de la bancă din care să rezulte următoarele: denumirea solicitantului, a unității bancare, adresa, codul IBAN."]
["15. Autorizaţia pentru producerea, prelucrarea şi comercializarea seminţelor certificate şi a materialului săditor (în cazul producătorilor de seminţe şi material săditor);"]
[null,"16. Declarație pe proprie răspundere a solicitantului de raportare către GAL"]
["17. Certificat privind Inscrierea în Registrul Unic de Identificare APIA"]
["18. Alte documente justificative (dupa caz)"]
[]
[]
[]
[]
[]
[]
[]
[]
[]
[]
[]
[]
[]
[]
[]
["STABILIREA CATEGORIEI DE FERMĂ\nSTRUCTURA CULTURILOR ŞI CALCULUL VALORII PRODUCTIEI STANDARD (SO)"]
["Coduri EUROSTAT",null,null,null,null,null,null,null,null,"Denumire culturi",null,null,null,null,null,null,null,null,null,null,null,null,null,null,null,null,null,null,null,null,"Suprafaţa       (ha)",null,null,null,null,null,null,null,"SO 2013           euro/ha, actualizat",null,null,null,null,null,null,null,null,null,"SO"]
[0,null,null,null,null,null,null,null,null,1,null,null,null,null,null,null,null,null,null,null,null,null,null,null,null,null,null,null,null,null,2,null,null,null,null,null,null,null,3,null,null,null,null,null,null,null,null,null,4]
["B_1_1_1",null,null,null,null,null,null,null,null,"Grâu comun (inclusiv semințe)",null,null,null,null,null,null,null,null,null,null,null,null,null,null,null,null,null,null,null,null,null,null,null,null,null,null,null,null,614.09,null,null,null,null,null,null,null,null,null,{"$f":"AE353*AM353","v":0}]
["B_1_1_2",null,null,null,null,null,null,null,null,"Grâu dur (inclusiv semințe)",null,null,null,null,null,null,null,null,null,null,null,null,null,null,null,null,null,null,null,null,null,null,null,null,null,null,null,null,432.81,null,null,null,null,null,null,null,null,null,0]
["B_1_1_3",null,null,null,null,null,null,null,null,"Secară (inclusiv semințe)",null,null,null,null,null,null,null,null,null,null,null,null,null,null,null,null,null,null,null,null,null,null,null,null,null,null,null,null,354.27,null,null,null,null,null,null,null,null,null,0]
["B_1_1_4",null,null,null,null,null,null,null,null,"Orz+Orzoaică (inclusiv semințe)",null,null,null,null,null,null,null,null,null,null,null,null,null,null,null,null,null,null,null,null,null,null,null,null,null,null,null,null,529.44000000000005,null,null,null,null,null,null,null,null,null,0]
["B_1_1_5",null,null,null,null,null,null,null,null,"Ovăz (inclusiv semințe)",null,null,null,null,null,null,null,null,null,null,null,null,null,null,null,null,null,null,null,null,null,null,null,null,null,null,null,null,331.88,null,null,null,null,null,null,null,null,null,0]
["B_1_1_6",null,null,null,null,null,null,null,null,"Porumb boabe (inclusiv semințe)",null,null,null,null,null,null,null,null,null,null,null,null,null,null,null,null,null,null,null,null,null,null,null,null,null,null,null,null,641.79999999999995,null,null,null,null,null,null,null,null,null,0]
["B_1_1_7",null,null,null,null,null,null,null,null,"Orez (inclusiv semințe)",null,null,null,null,null,null,null,null,null,null,null,null,null,null,null,null,null,null,null,null,null,null,null,null,null,null,null,null,913.26,null,null,null,null,null,null,null,null,null,0]
["B_1_1_99",null,null,null,null,null,null,null,null,"Alte cereale:  sorg, hrişca, mei, triticale, iarba-cănăraşului, altele (inclusiv semințe)",null,null,null,null,null,null,null,null,null,null,null,null,null,null,null,null,null,null,null,null,null,null,null,null,null,null,null,null,452.74,null,null,null,null,null,null,null,null,null,0]
["B_1_2_1",null,null,null,null,null,null,null,null,"Mazăre boabe, fasole boabe, lupin dulce (inclusiv semințe)",null,null,null,null,null,null,null,null,null,null,null,null,null,null,null,null,null,null,null,null,null,null,null,null,null,null,null,null,533.77,null,null,null,null,null,null,null,null,null,0]
["B_1_2_2",null,null,null,null,null,null,null,null,"Linte, bob, năut şi măzăriche (inclusiv semințe)",null,null,null,null,null,null,null,null,null,null,null,null,null,null,null,null,null,null,null,null,null,null,null,null,null,null,null,null,454.79,null,null,null,null,null,null,null,null,null,0]
["B_1_3",null,null,null,null,null,null,null,null,"Cartofi(inclusiv cartofi noi, material săditor, cartof dulce destinat consumului uman)",null,null,null,null,null,null,null,null,null,null,null,null,null,null,null,null,null,null,null,null,null,null,null,null,null,null,null,null,3167.88,null,null,null,null,null,null,null,null,null,0]
["B_1_4",null,null,null,null,null,null,null,null,"Sfeclă de zahăr (exclusiv semințe)",null,null,null,null,null,null,null,null,null,null,null,null,null,null,null,null,null,null,null,null,null,null,null,null,null,null,null,null,1449.74,null,null,null,null,null,null,null,null,null,0]
["B_1_5",null,null,null,null,null,null,null,null,"Plante rădăcinoase pentru nutreț: sfecla furajeră, alte plante furajere din familia brasiceelor, napi furajeri, morcovi furajeri, batata(cartof dulce), păstârnac, ignama, manioc,alte rădăcinoase (exclusiv semințe)",null,null,null,null,null,null,null,null,null,null,null,null,null,null,null,null,null,null,null,null,null,null,null,null,null,null,null,null,1101.45,null,null,null,null,null,null,null,null,null,0]
["B_1_6_1",null,null,null,null,null,null,null,null,"Tutun",null,null,null,null,null,null,null,null,null,null,null,null,null,null,null,null,null,null,null,null,null,null,null,null,null,null,null,null,1696.83,null,null,null,null,null,null,null,null,null,0]
["B_1_6_2",null,null,null,null,null,null,null,null,"Hamei",null,null,null,null,null,null,null,null,null,null,null,null,null,null,null,null,null,null,null,null,null,null,null,null,null,null,null,null,4105.24,null,null,null,null,null,null,null,null,null,0]
["B_1_6_4",null,null,null,null,null,null,null,null,"Rapiţă (inclusiv semințe)",null,null,null,null,null,null,null,null,null,null,null,null,null,null,null,null,null,null,null,null,null,null,null,null,null,null,null,null,647.72,null,null,null,null,null,null,null,null,null,0]
["B_1_6_5",null,null,null,null,null,null,null,null,"Floarea soarelui (inclusiv semințe)",null,null,null,null,null,null,null,null,null,null,null,null,null,null,null,null,null,null,null,null,null,null,null,null,null,null,null,null,564.52,null,null,null,null,null,null,null,null,null,0]
["B_1_6_6",null,null,null,null,null,null,null,null,"Soia (inclusiv semințe)",null,null,null,null,null,null,null,null,null,null,null,null,null,null,null,null,null,null,null,null,null,null,null,null,null,null,null,null,611,null,null,null,null,null,null,null,null,null,0]
["B_1_6_7",null,null,null,null,null,null,null,null,"In pentru ulei (inclusiv semințe)",null,null,null,null,null,null,null,null,null,null,null,null,null,null,null,null,null,null,null,null,null,null,null,null,null,null,null,null,1563.56,null,null,null,null,null,null,null,null,null,0]
["B_1_6_8",null,null,null,null,null,null,null,null,"Alte plante pentru ulei: ricin, şofrănaş, susan, arahide, mac, muştar, alte culturi oleaginoase (inclusiv semințe)",null,null,null,null,null,null,null,null,null,null,null,null,null,null,null,null,null,null,null,null,null,null,null,null,null,null,null,null,374,null,null,null,null,null,null,null,null,null,0]
["B_1_6_9",null,null,null,null,null,null,null,null,"In textil (exclusiv semințe)",null,null,null,null,null,null,null,null,null,null,null,null,null,null,null,null,null,null,null,null,null,null,null,null,null,null,null,null,307.17,null,null,null,null,null,null,null,null,null,0]
["B_1_6_10",null,null,null,null,null,null,null,null,"Cânepă (exclusiv semințe)",null,null,null,null,null,null,null,null,null,null,null,null,null,null,null,null,null,null,null,null,null,null,null,null,null,null,null,null,518.11,null,null,null,null,null,null,null,null,null,0]
["B_1_6_12",null,null,null,null,null,null,null,null,"Plante medicinale și aromatice, inclusiv ceaiul, cafeaua şi cicoarea pentru cafea: muşeţel, mătrăgună, mentă, mac, angelica,chimen, genţiana, iasomia, şofranul, salvia, gălbeneaua, lavanda, levănțică, origanul, valeriană, ghimbir etc. ",null,null,null,null,null,null,null,null,null,null,null,null,null,null,null,null,null,null,null,null,null,null,null,null,null,null,null,null,937.85,null,null,null,null,null,null,null,null,null,0]
["B_1_6_99",null,null,null,null,null,null,null,null,"Alte plante industriale: cicoarea, trestia de zahăr, alte plante tehnice nemenţionate în altă parte, sorgul tehnic (pentru mături)",null,null,null,null,null,null,null,null,null,null,null,null,null,null,null,null,null,null,null,null,null,null,null,null,null,null,null,null,717.56,null,null,null,null,null,null,null,null,null,0]
["B_1_7_1_1",null,null,null,null,null,null,null,null,"Legume proaspete, pepeni şi căpşuni - în câmp:\n- varză,conopidă, broccoli,sparanghel\n- legume pentru frunze (praz, salată, spanac etc.), \n- tomate,\n- porumb dulce,\n- legume cultivate pentru fructe: vinete, ardei, dovleci şi dovlecei, castraveciori,\n- legume cultivate pentru rădăcină, bulbi, tuberculi (excepţie cartofi): morcovi, păstârnac, ceapă, usturoi, napi, ridichi\n- legume păstăi: fasole, mazăre, cu excepţia lintei şi a năutului,\n- fructele plantelor neperene: căpşuni, pepeni galbeni, pepeni verzi, ananas.",null,null,null,null,null,null,null,null,null,null,null,null,null,null,null,null,null,null,null,null,null,null,null,null,null,null,null,null,6196.49,null,null,null,null,null,null,null,null,null,0]
["B_1_7_1_2",null,null,null,null,null,null,null,null,"Legume proaspete, pepeni şi căpşuni - în grădină destinate comercializării:\n- varză,conopidă, broccoli, sparanghel\n- legume pentru frunze (praz, salată, spanac etc.), \n- tomate,\n- porumb dulce,\n- legume cultivate pentru fructe: vinete, ardei, dovleci şi dovlecei, castraveciori,\n- legume cultivate pentru rădăcină, bulbi, tuberculi (excepţie cartofi) - morcovi, păstârnac, ceapă, usturoi, napi, ridichi\n- legume păstăi: fasole, mazăre, cu excepţia lintei şi a năutului,\n- fructele plantelor neperene: căpşuni, pepeni galbeni, pepeni verzi, ananas.",null,null,null,null,null,null,null,null,null,null,null,null,null,null,null,null,null,null,null,null,null,null,null,null,null,null,null,null,7176.16,null,null,null,null,null,null,null,null,null,0]
["B_1_7_2",null,null,null,null,null,null,null,null,"Legume proaspete, pepeni şi căpşuni - în sere și solarii:\n- varză,conopidă, broccoli, sparanghel\n- legume pentru frunze (praz, salată, spanac etc.), \n- tomate,\n- porumb dulce,\n- legume cultivate pentru fructe: vinete, ardei, dovleci şi dovlecei, castraveciori,\n- legume cultivate pentru rădăcină, bulbi, tuberculi (excepţie cartofi): morcovi, păstârnac,ceapă, usturoi, napi, ridichi\n- legume păstăi: fasole, mazăre, cu excepţia lintei şi a năutului,\n- fructele plantelor neperene: căpşuni, pepeni galbeni, pepeni verzi, ananas.",null,null,null,null,null,null,null,null,null,null,null,null,null,null,null,null,null,null,null,null,null,null,null,null,null,null,null,null,27507.66,null,null,null,null,null,null,null,null,null,0]
["B_1_8_1",null,null,null,null,null,null,null,null,"Flori în câmp:\n- bulbi de flori, cormi, tuberculi,\n- flori tăiate şi boboci,\n- plante cu flori şi plante ornamentale",null,null,null,null,null,null,null,null,null,null,null,null,null,null,null,null,null,null,null,null,null,null,null,null,null,null,null,null,25527.46,null,null,null,null,null,null,null,null,null,0]
["B_1_8_2",null,null,null,null,null,null,null,null,"Flori - în sere și solarii:\n- bulbi de flori, cormi, tuberculi,\n- flori tăiate şi boboci,\n- plante cu flori şi plante ornamentale",null,null,null,null,null,null,null,null,null,null,null,null,null,null,null,null,null,null,null,null,null,null,null,null,null,null,null,null,83743.81,null,null,null,null,null,null,null,null,null,0]
["B_1_9_1",null,null,null,null,null,null,null,null,"Plante de nutreț - Iarba temporară: iarba semănată pe terenuri arabile cedate producţiilor furajere erbacee pe o perioadă mai scurtă de 5 ani şi chiar sub un an",null,null,null,null,null,null,null,null,null,null,null,null,null,null,null,null,null,null,null,null,null,null,null,null,null,null,null,null,266.22000000000003,null,null,null,null,null,null,null,null,null,0]
["B_1_9_2_1",null,null,null,null,null,null,null,null,"Plante de nutreț - alte furaje verzi - Porumb siloz",null,null,null,null,null,null,null,null,null,null,null,null,null,null,null,null,null,null,null,null,null,null,null,null,null,null,null,null,1029.19,null,null,null,null,null,null,null,null,null,0]
["B_1_9_2_2",null,null,null,null,null,null,null,null,"Plante de nutreț - Alte furaje verzi: culturi anuale de cereale recoltate verzi, sorgul anual, anumite graminee anuale cum este firuţa, cruciferele, facelia dacă sunt recoltate verzi şi nu au fost menţionate în altă parte, măzăriche, lupin dulce",null,null,null,null,null,null,null,null,null,null,null,null,null,null,null,null,null,null,null,null,null,null,null,null,null,null,null,null,476.13,null,null,null,null,null,null,null,null,null,0]
["B_1_9_2_99",null,null,null,null,null,null,null,null,"Alte plante de nutreț: diferite specii de trifoi anual sau peren (trifoi alb, trifoi roşu, trifoi de Alexandria), diferite varietăţi de lucernă.",null,null,null,null,null,null,null,null,null,null,null,null,null,null,null,null,null,null,null,null,null,null,null,null,null,null,null,null,662.78,null,null,null,null,null,null,null,null,null,0]
["B_1_10",null,null,null,null,null,null,null,null,"Seminţe şi seminceri:\n- semințe de graminee ( altele decât cerealele de bază)\n- seminţe pentru horticultură,\n- seminţe şi răsaduri pentru teren arabil cu excepţia cerealelor, a boabelor de leguminoase uscate, a cartofilor, a plantelor oleaginoase.",null,null,null,null,null,null,null,null,null,null,null,null,null,null,null,null,null,null,null,null,null,null,null,null,null,null,null,null,2993.73,null,null,null,null,null,null,null,null,null,0]
["B_1_11",null,null,null,null,null,null,null,null,"Alte plante: culturi de mică importanţă economică care nu pot fi încadrate în altă categorie",null,null,null,null,null,null,null,null,null,null,null,null,null,null,null,null,null,null,null,null,null,null,null,null,null,null,null,null,592.99,null,null,null,null,null,null,null,null,null,0]
["B_3_1",null,null,null,null,null,null,null,null,"Păşuni și fânețe permanente - pășuni și fânețe",null,null,null,null,null,null,null,null,null,null,null,null,null,null,null,null,null,null,null,null,null,null,null,null,null,null,null,null,295.04000000000002,null,null,null,null,null,null,null,null,null,0]
["B_3_2",null,null,null,null,null,null,null,null,"Păşuni și fânețe permanente - pe terenuri accidentate - păşuni sărace, inclusiv lăstărişul, de obicei nefertilizate şi neîntrebuinţate:\n– păşuni cu randament scăzut situate în locuri accidentate şi la altitudini mari, care nu sunt cosite;\n – terenuri stâncoase, terenuri mlăştinoase, bărăganuri",null,null,null,null,null,null,null,null,null,null,null,null,null,null,null,null,null,null,null,null,null,null,null,null,null,null,null,null,92.33,null,null,null,null,null,null,null,null,null,0]
["B_4_1_1_1",null,null,null,null,null,null,null,null,"Fructe, pomi și arbuști - climă temperată:\n- mere, \n- pere\n- piersici și nectarine,\n- Alte fructe: prune, caise, cireşe, vişine, gutui.",null,null,null,null,null,null,null,null,null,null,null,null,null,null,null,null,null,null,null,null,null,null,null,null,null,null,null,null,2812.04,null,null,null,null,null,null,null,null,null,0]
["B_4_1_2",null,null,null,null,null,null,null,null,"Livezi de coacăz, zmeur, smochin, afin, agriş, mure,  cătină,  goji.",null,null,null,null,null,null,null,null,null,null,null,null,null,null,null,null,null,null,null,null,null,null,null,null,null,null,null,null,3958.34,null,null,null,null,null,null,null,null,null,0]
["B_4_1_3",null,null,null,null,null,null,null,null,"Fructe, pomi și arbuști: nuci, alune",null,null,null,null,null,null,null,null,null,null,null,null,null,null,null,null,null,null,null,null,null,null,null,null,null,null,null,null,1754.4,null,null,null,null,null,null,null,null,null,0]
["B_4_4_1",null,null,null,null,null,null,null,null,"Vii - vin nobil",null,null,null,null,null,null,null,null,null,null,null,null,null,null,null,null,null,null,null,null,null,null,null,null,null,null,null,null,1981.83,null,null,null,null,null,null,null,null,null,0]
["B_4_4_2",null,null,null,null,null,null,null,null,"Vii - alte vinuri",null,null,null,null,null,null,null,null,null,null,null,null,null,null,null,null,null,null,null,null,null,null,null,null,null,null,null,null,1889.96,null,null,null,null,null,null,null,null,null,0]
["B_4_4_3",null,null,null,null,null,null,null,null,"Vii – struguri de masă",null,null,null,null,null,null,null,null,null,null,null,null,null,null,null,null,null,null,null,null,null,null,null,null,null,null,null,null,2170.52,null,null,null,null,null,null,null,null,null,0]
["B_4_5",null,null,null,null,null,null,null,null,"Pepiniere",null,null,null,null,null,null,null,null,null,null,null,null,null,null,null,null,null,null,null,null,null,null,null,null,null,null,null,null,5614.25,null,null,null,null,null,null,null,null,null,0]
["B_4_6",null,null,null,null,null,null,null,null,"Alte culturi permanente: răchita, papura, bambus, salcie, brazi de crăciun",null,null,null,null,null,null,null,null,null,null,null,null,null,null,null,null,null,null,null,null,null,null,null,null,null,null,null,null,487.35,null,null,null,null,null,null,null,null,null,0]
["B_6_1",null,null,null,null,null,null,null,null,"Ciupercării pe 100mp (Nr. recolte pe an - 4)\n(suprafața totală cultivată = suprafața de bază*numărul de cicluri)",null,null,null,null,null,null,null,null,null,null,null,null,null,null,null,null,null,null,null,null,{"$f":"P399*Y399/100","v":0},null,null,null,null,null,null,null,4456.78,null,null,null,null,null,null,null,null,null,{"$f":"AE398*AM398/4","v":0}]
[null,null,null,null,null,null,null,null,null,"Nr. cicluri conform Plan afaceri *",null,null,null,null,null,null,null,null,null,null,"Suprafata de bază (stelaje) (mp) **"]
[null,null,null,null,null,null,null,null,null,"TOTAL VEGETAL",null,null,null,null,null,null,null,null,null,null,null,null,null,null,null,null,null,null,null,null,null,null,null,null,null,null,null,null,null,null,null,null,null,null,null,null,null,null,{"$f":"SUM(AW353:BI399)","v":0}]
[]
["*  SE VA COMPLETA CU NUMĂRUL DE CICLURI PREVĂZUT A SE REALIZA ÎN CADRUL UNUI AN, CONFORM PLANULUI DE\nAFACERI.\n** SE VA COMPLETA CU SUPRAFAŢA CULTURII(MP) CU CIUPERCI; ÎN CAZUL ÎN CARE ÎN CADRUL CIUPERCĂRIEI SE\nUTILIZEAZĂ UN SISTEM DE CULTURĂ ÎN STELAJE, SE VA COMPLETA SUPRAFAŢA CULTURII(MP) FORMATĂ DIN SUPRAFAŢA\nUNUI STELAJ(MP)xNUMĂR DE STELAJE "]
["Coduri EUROSTAT",null,null,null,null,null,null,null,null,"Denumire specii animale",null,null,null,null,null,null,null,null,null,null,null,null,null,null,null,null,null,null,null,null,"Număr\ncapete",null,null,null,null,null,null,null,"SO 2013           euro/cap",null,null,null,null,null,null,null,null,null,"SO"]
[0,null,null,null,null,null,null,null,null,1,null,null,null,null,null,null,null,null,null,null,null,null,null,null,null,null,null,null,null,null,2,null,null,null,null,null,null,null,3,null,null,null,null,null,null,null,null,null,4]
["C_1",null,null,null,null,null,null,null,null,"Ecvidee",null,null,null,null,null,null,null,null,null,null,null,null,null,null,null,null,null,null,null,null,null,null,null,null,null,null,null,null,1404.31,null,null,null,null,null,null,null,null,null,{"$f":"AE405*AM405","v":0}]
["C_2_1",null,null,null,null,null,null,null,null,"Bovine sub 1 an - total",null,null,null,null,null,null,null,null,null,null,null,null,null,null,null,null,null,null,null,null,null,null,null,null,null,null,null,null,216.38,null,null,null,null,null,null,null,null,null,0]
["C_2_2",null,null,null,null,null,null,null,null,"Bovine sub 2 ani - masculi",null,null,null,null,null,null,null,null,null,null,null,null,null,null,null,null,null,null,null,null,null,null,null,null,null,null,null,null,344.4,null,null,null,null,null,null,null,null,null,0]
["C_2_3",null,null,null,null,null,null,null,null,"Bovine sub 2 ani - femele",null,null,null,null,null,null,null,null,null,null,null,null,null,null,null,null,null,null,null,null,null,null,null,null,null,null,null,null,341.49,null,null,null,null,null,null,null,null,null,0]
["C_2_4",null,null,null,null,null,null,null,null,"Bovine de 2 ani şi peste - masculi",null,null,null,null,null,null,null,null,null,null,null,null,null,null,null,null,null,null,null,null,null,null,null,null,null,null,null,null,817.88,null,null,null,null,null,null,null,null,null,0]
["C_2_5",null,null,null,null,null,null,null,null,"Bovine de 2 ani si peste - femele (juninci pentru îngrăşat, juninci pentru reproducţie)",null,null,null,null,null,null,null,null,null,null,null,null,null,null,null,null,null,null,null,null,null,null,null,null,null,null,null,null,801.38,null,null,null,null,null,null,null,null,null,0]
["C_2_6",null,null,null,null,null,null,null,null,"Vaci, bivolițe pentru lapte",null,null,null,null,null,null,null,null,null,null,null,null,null,null,null,null,null,null,null,null,null,null,null,null,null,null,null,null,1200.46,null,null,null,null,null,null,null,null,null,0]
["C_2_99",null,null,null,null,null,null,null,null,"Bovine de 2 ani şi peste - alte vaci",null,null,null,null,null,null,null,null,null,null,null,null,null,null,null,null,null,null,null,null,null,null,null,null,null,null,null,null,515.85,null,null,null,null,null,null,null,null,null,0]
["C_3_1_1",null,null,null,null,null,null,null,null,"Oi - mioare montate - oi de un an sau mai mult destinate reproducerii, oile reformate care urmează să fete",null,null,null,null,null,null,null,null,null,null,null,null,null,null,null,null,null,null,null,null,null,null,null,null,null,null,null,null,54.91,null,null,null,null,null,null,null,null,null,{"$f":"AE413*AM413","v":0}]
["C_3_1_99",null,null,null,null,null,null,null,null,"Oi-alte oi : miei, berbeci, oi reformate - oi sterpe care urmează a fi îngrăşate în vederea sacrificării",null,null,null,null,null,null,null,null,null,null,null,null,null,null,null,null,null,null,null,null,null,null,null,null,null,null,null,null,26.72,null,null,null,null,null,null,null,null,null,0]
["C_3_2_1",null,null,null,null,null,null,null,null,"Capre – capre montate - capre montate femele destinate reproducerii, capre re reformate care urmează să fete",null,null,null,null,null,null,null,null,null,null,null,null,null,null,null,null,null,null,null,null,null,null,null,null,null,null,null,null,112.98,null,null,null,null,null,null,null,null,null,0]
["C_3_2_99",null,null,null,null,null,null,null,null,"Capre – alte capre: iezi, ţapi, capre reformate destinate sacrificării",null,null,null,null,null,null,null,null,null,null,null,null,null,null,null,null,null,null,null,null,null,null,null,null,null,null,null,null,39.67,null,null,null,null,null,null,null,null,null,0]
["C_4_1_1",null,null,null,null,null,null,null,null,"Porcine - tineret porcin sub 20 kg",null,null,null,null,null,null,null,null,null,null,null,null,null,null,null,null,null,null,null,null,null,null,null,null,null,null,null,null,33.36,null,null,null,null,null,null,null,null,null,0]
["C_4_1_2",null,null,null,null,null,null,null,null,"Porcine - scroafe pentru reproducţie peste 50 kg",null,null,null,null,null,null,null,null,null,null,null,null,null,null,null,null,null,null,null,null,null,null,null,null,null,null,null,null,262.55,null,null,null,null,null,null,null,null,null,0]
["C_4_1_99",null,null,null,null,null,null,null,null,"Porcine - alte porcine: porci la îngrăşat, vieri, scroafe destinate sacrificării",null,null,null,null,null,null,null,null,null,null,null,null,null,null,null,null,null,null,null,null,null,null,null,null,null,null,null,null,388.08,null,null,null,null,null,null,null,null,null,0]
["C_5_1",null,null,null,null,null,null,null,null,"Pui pentru carne *",null,null,null,null,null,null,null,null,null,null,null,null,null,null,null,null,null,null,null,null,null,null,null,null,null,null,null,null,473.59,null,null,null,null,null,null,null,null,null,0]
["C_5_2",null,null,null,null,null,null,null,null,"Găini ouătoare *",null,null,null,null,null,null,null,null,null,null,null,null,null,null,null,null,null,null,null,null,null,null,null,null,null,null,null,null,2156,null,null,null,null,null,null,null,null,null,0]
["C_5_3_1",null,null,null,null,null,null,null,null,"\nCurcani şi curci*",null,null,null,null,null,null,null,null,null,null,null,null,null,null,null,null,null,null,null,null,null,null,null,null,null,null,null,null,4205.5600000000004,null,null,null,null,null,null,null,null,null,0]
["C_5_3_2",null,null,null,null,null,null,null,null,"Raţe*",null,null,null,null,null,null,null,null,null,null,null,null,null,null,null,null,null,null,null,null,null,null,null,null,null,null,null,null,2824.99,null,null,null,null,null,null,null,null,null,0]
["C_5_3_3",null,null,null,null,null,null,null,null,"Gâşte*",null,null,null,null,null,null,null,null,null,null,null,null,null,null,null,null,null,null,null,null,null,null,null,null,null,null,null,null,3602.66,null,null,null,null,null,null,null,null,null,0]
["C_5_3_4",null,null,null,null,null,null,null,null,"Struţi*",null,null,null,null,null,null,null,null,null,null,null,null,null,null,null,null,null,null,null,null,null,null,null,null,null,null,null,null,30083.5,null,null,null,null,null,null,null,null,null,0]
["C_5_3_99",null,null,null,null,null,null,null,null,"Alte păsări: bibilici, porumbei, potârnichi, fazani, prepeliţe*",null,null,null,null,null,null,null,null,null,null,null,null,null,null,null,null,null,null,null,null,null,null,null,null,null,null,null,null,900.34,null,null,null,null,null,null,null,null,null,0]
["C_6",null,null,null,null,null,null,null,null,"Iepuri (femele iepuri)",null,null,null,null,null,null,null,null,null,null,null,null,null,null,null,null,null,null,null,null,null,null,null,null,null,null,null,null,13.91,null,null,null,null,null,null,null,null,null,0]
["C_7",null,null,null,null,null,null,null,null,"Familii de albine",null,null,null,null,null,null,null,null,null,null,null,null,null,null,null,null,null,null,null,null,null,null,null,null,null,null,null,null,59.62,null,null,null,null,null,null,null,null,null,0]
[null,null,null,null,null,null,null,null,null,"TOTAL zootehnic",null,null,null,null,null,null,null,null,null,null,null,null,null,null,null,null,null,null,null,null,null,null,null,null,null,null,null,null,null,null,null,null,null,null,null,null,null,null,{"$f":"SUM(AW405:BI428)","v":0}]
[null,null,null,null,null,null,null,null,null,"TOTAL GENERAL",null,null,null,null,null,null,null,null,null,null,null,null,null,null,null,null,null,null,null,null,null,null,null,null,null,null,null,null,null,null,null,null,null,null,null,null,null,null,{"$f":"SUM(AW400+AW429)","v":0}]
[]
["Valoare sprijin:*",null,null,null,null,null,null,null,null,null,null,null,null,null,null,null,null,null,null,null,null,null,null,null,null,null,null,null,null,null,null,null,null,null,null,"* Valoarea SO se referă la 100 capete"]
[]
["Curs EURO la data întocmirii Planului de Afaceri:",null,null,null,null,null,null,null,null,null,null,null,null,null,null,null,null,null,null,null,null,null,null,null,null,null,null,null,null,null,null,null,null,"Data întocmire Plan de Afaceri:"]
[]
[]
[null,"DEFINIȚIA ȘI PRINCIPIILE DE CALCULARE A PRODUCȚIILOR STANDARD SO 2013, actualizată\n\nExploataţia profesională este o exploataţie agricolă suficient de mare încât să ofere o activitate de bază pentru şeful exploataţiei şi un venit suficient pentru susţinerea lui şi a familiei sale.\n\n(a) Valoarea producției standard reprezintă valoarea monetară a producției agricole brute la prețul de la poarta exploatației. Această valoare este suma dintre valoarea produsului principal (produselor principale) și cea a produsului secundar (produselor secundare). Valorile se calculează înmulțind producția per unitate cu prețul de la poarta exploatației. TVA-ul, taxele pe produse și plățile directe nu sunt incluse.\n\n(b) Perioada de producție Producțiile standard corespund unei perioade de producție de 12 luni (an calendaristic sau an de producție agricolă). Pentru produsele vegetale și animale în cazul cărora perioada de producție este mai mică de 12 luni sau depășește această perioadă, se calculează o producție standard corespunzătoare creșterii sau producției pe o perioadă de 12 luni.\n"]
[null,"(c) Unități\n\n1. Producțiile standard corespunzătoare caracteristicilor culturilor se determină pe baza suprafeței exprimate în hectare.\n\nCu toate acestea, pentru ciuperci, producțiile standard se determină pe baza producției brute pentru toate recoltele anuale succesive și se exprimă per 100 m2 de suprafață cultivată. În vederea utilizării lor în contextul RICA, aceste producții standard pentru ciuperci se împart la numărul de recolte anuale succesive care este comunicat Comisiei Europene.\n\n2. Producțiile standard corespunzătoare caracteristicilor efectivului de animale se determină pe cap de animal, cu excepția păsărilor de curte, pentru care se exprimă per 100 de capete, și a albinelor, pentru care se determină per stup.\n\n3. Datele de bază pentru determinarea producțiilor standard, precum și producțiile standard calculate se stabilesc în euro. Pentru statele membre care nu au aderat la uniunea economică și monetară, producțiile standard se convertesc în euro, utilizându-se cursurile de schimb medii pentru perioada de referință. Aceste cursuri de schimb medii se calculează pe baza cursurilor de schimb oficiale publicate de Comisie (Eurostat).\n\n"]
[null,"(d)Defalcarea producțiilor standard\n\nÎn funcție de caracteristicile culturii vegetale și ale efectivului de animale producțiile standard se determină pentru toate caracteristicile agricole care sunt in exploatația agricola.\nDimensiunea economică a unei exploataţii agricole reprezintă valoarea SO totala a exploataţiei, exprimată în euro, corespunzătoare sumei SO calculată pentru fiecare dintre producţiile vegetale ori animale obţinute în exploataţia respectivă într-o perioadă de un an calendaristic sau an agricol.\nÎn cadrul măsurilor de Finanţare din cadrul Programului Naţional de Dezvoltare Rurală este necesară determinarea dimensiunii economice a exploataţiilor agricole care accesează fondurile europene.\nAceste instrucţiuni sprijină experţii verificatori de la nivel central şi pe cei judeţeni în rezolvarea atribuţiilor ce le revin în procesul de verificare a dimensiunii economice, dimensiune rezultată în urma aplicării coeficienţilor standard output SO.\nAceştia se introduc ca atare şi se aplică la efectivul din teren la data aplicării cererii de Finanţare pentru măsurile de dezvoltare rurală. Pentru cazul exploataţiilor de îngrăşare a animalelor in mai multe cicluri pe an, dimensiunea economică se calculează în baza unui număr mediu."]
[null,"1.Culturi\n\nPentru toate tipurile de culturi(excepţie ciupercile) se aplică formula:\nSO 2013 = nr. ha cultura x coeficient cultura SO 2013\nIndiferent ce se obţine dintr-o cultură - făina, mălai, tărâţe, conserve, compot, dulceaţă, ţuică) - acestea sunt produse procesate fiind considerate ca venituri din alte activităţi ale exploataţiei agricole şi care nu intră în calculul dimensionării economice. Excepţie face obţinerea vinului.\nPentru exploatații care au mai multe culturi în cadrul unei categorii, cum ar fi ”Legume proaspete pepeni și căpșuni - în câmp deschis \" sau - ”Fructe din zone cu climă temperată”, coeficientul SO corespunde mediei ponderate a SO - urilor producțiilor incluse în această categorie. Este la latitudinea statelor membre să decidă care producție trebuie să fie inclusă în calcul în funcție de semnificația acesteia.\nÎn cazul în care pozițiile sunt subdivizate în sub poziții Statele Membre pot da un singur coeficient regional pentru o poziție principală; în acest caz,coeficientul pentru poziția principală se utilizează și pentru sub pozițiile aferente ex. ”Legume proaspete, pepeni şi căpşuni - în câmp, Flori, Fructe, pomi şi arbuşti - climă temperată” etc.\n"]
[]
[]
[null,"Tratamentul cazurilor speciale\nSe stabilesc regulile următoare pentru calcularea producţiilor standard pentru anumite tipuri de caracteristici:\nPârloage (terenuri scoase temporar din circuitul agricol) fără subvenţii\nProducţia standard corespunzătoare pârloagelor fără niciun fel de subvenţii se ia în considerare la calcularea producţiei standard totale a exploataţiei numai în cazul în care există alte producţii standard pozitive pe exploataţie.\nPârloage pentru care s-au acordat subvenţii, fără uz economic, şi păşuni permanente care nu mai sunt utilizate în producţie şi care sunt eligibile pentru plata subvenţiilor\nAvând în vedere că producţia de pe terenurile în sistem de ajutor fără uz economic este limitată la plăţile directe, producţiile standard ale acestor terenuri se consideră egale cu zero.\nGrădinile familiale\nAvând în vedere că produsele grădinilor familiale sunt în mod obişnuit destinate consumului propriu al exploatantului şi nu comercializării, producţiile standard ale acestora se consideră egale cu zero.\n\nCultura ciupercilor\nPentru ciuperci cod B_6_1, producțiile standard se determină pe baza producției brute pentru toate recoltele anuale succesive și se exprimă per 100 m2 de suprafață cultivată.\nSe va dimensiona astfel:\nSuprafața totală a culturilor succesive = suprafaţa de bază( care poate fi supraetajată) x numărul de recolte – cicluri – complete\nPentru România s-au stabilit 4 cicluri de producţie.\nExemplu de calcul:\nPentru o suprafaţă totală de 200 mp:\nSO 2013 = 2 x 4456,78/4 cicluri = 2228,39 euro Seminţe şi semininceri\n\nCulturile de graminee (grâu, orz, orzoaică, ovăz, porumb, alte cereale) - loturi semincere se vor încadra la categoria de baza a culturii. Ca urmare la categoria B_1_10 Seminţe şi semininceri vor fi incluse următoarele:\n- Seminţe de graminee altele decât cele de la categoriile B_1_1_1, B_1_1_2, B_1_1_3, B_1_1_4, B_1_1_5, B_1_1_6, B_1_1_7, B_1_1_99\n- Seminţe pentru horticultura\n- Seminţe şi răsaduri pentru teren arabil cu excepţia cerealelor, a boabelor de leguminoase uscate, a cartofilor, a plantelor oleaginoase\nFuraj\nÎn cazul în care, pe exploataţie, nu există erbivore (ecvidee, bovine, ovine şi caprine), furajele (rădăcinoase furajere şi brasicacee, plante verzi, păşuni şi fâneţe) se consideră ca fiind destinate comercializării şi fac parte din producţia culturilor de câmp.\nÎn cazul în care, pe exploataţie, există erbivore, furajele se consideră a fi destinate hrănirii acestora şi fac parte din producţia corespunzătoare erbivorelor şi furajelor.\n"]
[null,"2. Animale\n\nLa calcularea SO, procesarea produselor agricole nu trebuie luată în considerare chiar dacă această activitate este strâns legată de producție (lapte în unt, smântână, brânză). Prin urmare, în cazul în care într-o regiune laptele este transformat în brânză, în calcularea SO pentru vacile de lapte numai valoarea laptelui va fi luată în considerare și nu valoarea brânzei.\nPentru toate speciile de animale se aplică formula:\nSO 2013 = nr. capete specie x coeficient specie SO 2013\nmai puţin cazul păsărilor de curte la care coeficientul calculat este la 100 capete.\nExploataţia de creştere a cabalinelor\nÎn concordanţă cu codurile utilizate pentru coeficienţii producție standard (standard output, SO) se disting următoarele categorii de cabaline:\nC_1 Echide: caii (inclusiv caii de curse și de călărie), măgarii, catârii, bardoii, etc.\n- Evaluarea cabalinelor s-a efectuat ţinând cont de valoarea orelor de muncă pe care acestea le efectuează în exploataţie ca producţie principală şi de valoarea mânjilor fătaţi ca producţie secundară.\n- Cabalinele şi produsele acestora din anchetele RICA nu sunt destinate consumului uman ci deservesc munca în exploataţie.\nExemplu de calcul:\nExploataţia deţine:\n- 4 cai\n- 2 mânji\nDimensiunea economică a exploataţiei va fi: SO 2013 = 4 x 2052,50 = 8210 euro\nExploataţia de creştere bovine\n\nÎn concordanţă cu codurile utilizate pentru coeficienţii producție standard ( standard output, SO) se disting următoarele categorii de bovine:\nC_2_1. Bovine sub un an, masculi și femele\nC_2_2. Bovine între unu și doi ani, masculi\nC_2_3. Bovine între unu și doi ani, femele. Cu excepția bovinelor femele care au fătat deja. C_2_4. Bovine masculi de doi ani și de peste doi ani\nC_2_5. Juninci de reproducție. Bovine femele de doi ani sau mai mult, care nu au fătat încă și care sunt destinate reproducerii.\nC_2_5. Juninci pentru îngrășat. Bovine femele de doi ani sau mai mult, care nu au fătat încă și care nu sunt destinate reproducerii.\nC_2_6. Vaci de lapte. Bovine femele care au fătat (inclusiv cele de sub doi ani), care sunt ținute exclusiv sau în principal pentru producția de lapte destinat consumului uman sau obținerii de produse lactate. Sunt incluse vacile de lapte reformate.\nC_2_6. Bivolițe. Bivolițele care au fătat (inclusiv cele de sub doi ani) care sunt ținute exclusiv sau în principal pentru producția de lapte destinat consumului uman sau obținerii de produse lactate. Sunt incluse bivolițele reformate.\n"]
[null,"C_2_99. Alte vaci:\n1. Bovine femele care au fătat (inclusiv cele de sub doi ani), care sunt ținute exclusiv sau în principal pentru producția de viței și al căror lapte nu este utilizat pentru consumul uman sau obținerea de produse lactate.\n2. Vaci pentru muncă.\n3. Vaci reformate care nu sunt de lapte (îngrăşate sau nu înaintea sacrificării)\nCategoriile C_2_1:C_2_5 și C_2_99 includ și categoriile corespunzătoare de bivoli și bivolițe.\nPentru categoria C_2_1 Bovine sub un an se întâlnesc următoarele situaţii:\n-dacă în exploataţie se găsesc vaci de lapte cod C_2_6 atunci calculul dimensiunii economice se face prin însumarea producţiilor standard pentru vaci de lapte şi a producţiilor standard pentru viţeii sub 1 an al căror număr depăşeşte numărul vacilor de lapte;\n-dacă în exploatație nu se găsesc vaci de lapte atunci se iau în considerare producțiile standard corespunzătoare viţeilor sub 1 an pentru numărul care există în acel moment în exploataţie.\n-dacă în exploataţie sunt bovine femele care au fătat codul C_2_99, ţinute exclusiv sau în principal pentru producția de viței și al căror lapte nu este utilizat pentru consumul uman sau obținerea de produse lactate, calculul dimensiunii economice se face prin însumarea producţiilor standard pentru bovine femele care au fătat codul C_2_99 şi a producţiilor standard pentru viţeii sub 1 an al căror număr depăşeşte numărul bovinelor femele care au fătat cod C_2_99.\nExemple de calcul:\n1) Exploataţia deţine următoarele categorii de bovine: - 10 vaci de lapte care au fătat 12 viţei,\n- 2 tauri mai mari de doi ani,\n- 3 viţele mai mari de 2 ani destinate sacrificării,\n- 3 bovine femele care au fătat 3 viţei, bovine ţinute exclusiv pentru producţia de viţei Dimensiunea economică a exploataţiei va fi:\nSO 2013 = 10 x 1200,46 + 2 x 216,38 + 2 x 817,88 + 3 x 801,38 + 3 x 515,85 = 18024,81 Euro\n2) Exploataţia deţine următoarele categorii de bovine: - 25 viţei bovine sub un an achiziţionaţi\n- 7 bovine femele care au fătat 9 viţei, bovine ţinute exclusiv pentru producţia de viţei.                                                                                     Dimensiunea economică a exploataţiei va fi:SO 2013 = 25 x 216,38 + 7 x 515,85 +2 x 216,38 = 9453,21 Euro\nExploataţia de creştere ovine şi caprine\nÎn concordanţă cu codurile utilizate pentru coeficienţii producție standard ( standard output, SO) se disting următoarele categorii de ovine şi caprine:\nC_3_1_1. Oi, femele de reproducție. Oi de un an sau mai mult destinate reproducției.\nC_3_1_99. Alte ovine. Ovine de toate vârstele, cu excepția oilor.\nC_3_2_1. Caprine, femele de reproducție\nC_3_2_99. Alte caprine. Caprine, altele decât femelele de reproducție.\nProducțiile standard corespunzătoare altor ovine - miei se iau în considerare la calcularea producției standard totale a exploatației numai în cazul în care în exploatație nu există nicio femelă ovină de reproducție.\n"]
[null,"Producțiile standard corespunzătoare altor caprine – iezi se iau în considerare la calcularea producției standard totale a exploatației numai în cazul în care în exploatație nu există nicio femelă caprină de reproducție\nAcest lucru se datorează faptului că mieii/iezii sunt consideraţi producţia principală a oilor/caprelor, valoarea acestora fiind inclusă în coeficientul standard output al oilor, respectiv caprelor.\nExemplu de calcul:\nExploataţia deţine următoarele categorii de ovine şi caprine:\n- 250 oi,\n- 270 miei ,\n- 10 berbeci \n- 12 oi sterpe\n- 25 iezi\nSO 2013 = 250 x 54,91 + 10 x 26,72 +12 x26,72 + 25 x 39,67 = 15307,09 Euro\nExploataţia de creştere porcine :\nÎn concordanţă cu codurile utilizate pentru coeficienţii producție standard ( standard output, SO) se disting următoarele categorii de porcine:\nC_4_1. Purcei cu greutatea în viu sub 20 kg Purcei cu greutatea în viu sub 20 kg.\nC_4_2. Scroafe de reproducție de 50 kg și peste această greutate Scroafe de reproducție de 50 de kilograme sau mai mult, cu excepția scroafelor reformate (a se vedea categoria C_4_99, „Alte porcine”).\nC_4_99. Porci pentru îngrășat Porci pentru îngrășat cu greutatea în viu de 20 kg sau mai mult, cu excepția scroafelor reformate și a vierilor reformați (a se vedea categoria C_4_99, „Alte porcine”).\nC_4_99. Alte porcine Porci cu greutatea în viu de 20 kg sau mai mult, cu excepția scroafelor de reproducție (a se vedea categoria C_4_2) și a porcilor pentru îngrășat (a se vedea categoria C_4_99).\nProducțiile standard corespunzătoare purceilor se iau în considerare la calcularea producției standard totale a exploatației numai în cazul în care în exploatație nu există nicio scroafă de reproducție.\nAcest lucru se datorează faptului că purceii sub 20 kg sunt consideraţi producţia principală a scroafelor de reproducţie, valoarea acestora fiind inclusă în coeficientul standard output al scroafelor.\nExemplu de calcul:\nExploataţia deţine:\n- 12 scroafe,\n- 40 purcei sub 20 kg,\n- 35 porci pentru îngrăşat,\n- 2 vieri\nSO 2013 = 12 x 262,55 + 35 x 388,08 + 2 x 388,08 = 17509,56 Euro\n"]
[]
[]
[null,"In cazul în care exploataţia îşi desfăşoară activitatea pe mai multe cicluri de producţie (îngrăşare), calculul dimensiunii se va face astfel:\n- SO 2013 total = număr mediu porci îngrăşat x SO 2013 porci îngrăşat unde numărul mediu este exprimat ca număr cu o zecimală şi se calculează proporţional cu durata prezenţei porcilor de îngrăşat în exploataţie în timpul anului;\n- Numărul mediu = nr. total porci îngrăşat x numărul de zile (sau luni) prezenţi în exploataţie/365zile (sau 12 luni)\nExemplu de calcul: exploataţia îngraşă porci în trei cicluri prin achiziţionarea unui nr. total de 1800 porci de îngrăşat:\n- Numărul mediu = 1800 x 112 zile prezenţi în exploataţie/365 zile an = 552,3 porci îngrăşat\n- Va rezulta dimensiunea exploataţiei ca fiind:\nSO 2013 TOTAL = 552,3 x 388,08 = 214336,58 euro.\n\n"]
[]
[null,"Exploataţia de creştere păsări de curte\n\nÎn concordanţă cu codurile utilizate pentru coeficienții producție standard ( standard output, SO) se disting următoarele categorii de păsări de curte:\nC_5_1 pui pentru carne\nC_5_2 găini ouătoare: puicuțele (găini tinere care nu au început să ouă), găinile ouătoare, găinile reformate și cocoșii de reproducție pentru găini ouătoare.\nC_5_3_1 Curcani şi curci\nC_5_3_2 Raţe\nC_5_3_3 Gâşte\nC_5_3_4 Struţi\nC_5_3_99 Alte păsări: bibilici, porumbei, potârnichi, fazani, prepeliţe\nNu se includ puişorii de o zi în nicio categorie de păsări.\nPuişorii de o zi, care nu reprezintă o categorie, ca atare, dar sunt incluşi în categoria reziduală \"Alte animale\", sunt principalul produs al găinilor de reproducție. Pentru acest lucru nu se calculează coeficient SO aferent acestei categorii.\nExploataţiile cu incubatoare pentru obţinerea puişorilor de o zi ar trebui să-şi dimensioneze unitatea prin alte metode decât cea a utilizării coeficienţilor SO, eventual cu producţia de puişori(valoare sau număr) previzionată.\n- Exploataţiile care îşi desfăşoară activitatea pe mai multe cicluri de producţie de pui de carne într-un an contabil se vor dimensiona la depunerea cererii de finanţare cu efectivul mediu de păsări (a tuturor ciclurilor) conform următoarei formule:\nSO 2013 total = număr mediu pui de carne x SO 2013 pui carne/100 unde numărul mediu este exprimat în cazul păsărilor ca număr întreg şi se calculează proporţional cu durata prezenţei lor în exploataţie în timpul anului\nExemplu de calcul\nExploataţia achiziţionează 1000000 pui de carne în timpul unui an în mai multe cicluri:\n- Numărul mediu = nr. total păsări x numărul de luni prezente în exploataţie/12 luni = 1000000 x 2/12 = 166667 pui de carne\n- Coeficientul standard output SO aferent categoriei C_5_1 Pui de carne = 473,59 euro/100 capete\n- Va rezulta dimensiunea exploataţiei ca fiind:\nSO 2013 TOTAL = 166667 x 473,59/100 = 789318,25 euro.\n"]
[null,"Regulamentele care stau la baza calculului SO sunt următoarele:\n• Regulamentul (CE) nr. 1217/2009 al Consiliului privind crearea unei reţele de colectare de informaţii contabile privind veniturile şi activitatea economică a exploataţiilor agricole în Uniunea Europeană;\n• Documentul Comitetului Comunitar RICA RI/CC 1680 v.4 Martie 2015 privind Definițiile chestionarului utilizat în anchetă;\n• Regulamentul de punere în aplicare (UE) 220/ 3 februarie 2015 al Comisiei de stabilire a normelor de aplicare a Regulamentului (CE) nr. 1217/2009 al Consiliului privind crearea unei rețele de colectare de informații contabile privind veniturile și activitatea economică a exploatațiilor agricole în Uniunea Europeană;\nDocumentul Comitetului Comunitar RICA RI/CC 1500 v.4 Iunie 2016 Manual de tipologie\n"]
[]
["F. DECLARAŢIE PE PROPRIA RĂSPUNDERE A SOLICITANTULUI"]
["Prin această declaraţie solicitantul"]
[]
["care solicită asistență financiară nerambursabilă prin programul FEADR pentru proiectul intitulat"]
[]
[]
["1.",null,null,"Declar pe propria răspundere că îndeplinesc condiţiile minime de acordare a sprijinului prevazute în fişa măsurii\ndin Ghidul Solicitantului şi mă angajez să le respect pe o perioadă egală cu perioada de implementare şi\nmonitorizare a proiectelor începând cu anul depunerii cererii de finanţare."]
["2.",null,null,"Declar pe propria răspundere că toate informaţiile din prezenta cerere de finanţare şi din documentele anexate\nsunt corecte şi mă angajez să respect condiţiile cerute în reglementările referitoare la prezentul program şi pe\ncele legate de proiectul anexat şi să furnizez periodic, la cerere, documente justificative necesare."]
["3.",null,null,"Declar pe propria răspundere că orice modificări aduse dreptului de proprietate sau de folosinţă vor fi notificate\nAFIR în termen de trei zile de la data încheierii lor. De asemenea, mă angajez, că pe perioada de implementare a\nproiectului nu voi reduce dimensiunea economică prevăzută la depunerea cererii de finanţare a exploataţiei\nagricole pe durata de execuţie a proiectului cu mai mult de 15%, cu excepţia pepinierelor, unde marja de\nfluctuaţie de maximum 15% a dimensiunii economice poate fi mai mare, fără a reduce dimensiunea SO sub limita\ncare defineşte mărimea exploataţiei pentru care proiectul este selectat şi aprobat."]
["  4.   Declar că nu sunt într-unul din urmatoarele cazuri:"]
[null,null,null,"Acuzat din cauza unei greseli privind conduita profesională având ca soluţie finală res judicata (împotriva căreia nici un apel nu este posibil)"]
[null,null,null,"Vinovat de grave deficienţe de conduită profesională dovedite prin orice mijloace pe care Agenţia le poate justifica."]
[null,null,null,"Vinovat de faptul că nu am prezentat informaţiile cerute de Autoritatea Contractantă ca o condiţie de participare la\ncontractare."]
[null,null,null,"Încălcarea prevederilor contractuale prin care nu mi-am îndeplinit obligaţiile contractuale în legătură cu un alt contract cu AFIR sau alte contracte finanţate din fonduri comunitare"]
[null,null,null,"Încercarea de a obţine informaţii confidenţiale sau de influenţare a AFIR în timpul procesului de evaluare a proiectului şi nu voi face presiuni la adresa evaluatorului."]
["5.",null,null,"Declar pe propria răspundere că mă angajez ca toate obiectivele prevăzute în Planul de afaceri să fie realizate cu\nrespectarea legislaţiei naţionale în vigoare şi după caz, să obţin Autorizaţia de funcţionare în acord cu aceasta,\npână la verificarea conformităţii Planului de Afaceri la tranşa a doua."]
["6.",null,null,"Declar pe propria răspundere că în cazul în care nu respect oricare din punctele prevăzute în declarative\nproiectul să devină neeligibil în baza criteriului \"Eligibilitatea solicitantului\" sau contractul să fie reziliat."]
["7.",null,null,"Declar pe propria răspundere că mă instalez pentru prima dată în calitate de conducător (şef) al exploataţiei\nagricole şi că nu deţin în proprietate/folosinţă alte terenuri, animale, păsări şi familii de albine în afara celor\ndeclarate în planul de afaceri."]
["8.",null,null,"Declar că, în cazul în care, exploataţia zootehnică pe care o deţin va fi selectată şi primeşte sprijin financiar\nnerambursabil, să o înregistrez la ANSVSA, ca exploataţie comercială de tip A, până la semnarea contractului de\nFinanţare."]
["9.",null,null,"Declar pe propria răspundere că îmi voi stabili domiciliul în UAT-ul în care este înregistrată exploataţia, în\nmaximum de 9 luni de la data semnării contractului de finanţare."]
["10.",null,null,"Declar pe propria răspundere că sediul social al solicitantului (persoană juridică) va fi localizat într-un UAT în\ncare este înregistrată exploataţia."]
["11.",null,null,"Declar pe propria răspundere că în cazul în care mă voi angaja ulterior depunerii Cererii de finanţare voi respecta\ncondiţia privind deţinerea unui loc de muncă în acelaşi UAT sau zona limitrofă a UAT în care este înregistrată\nexploataţia în maximum de 9 luni de la data semnării contractului de finanţare."]
["12.",null,null,null,null,"Declar pe propria răspundere că voi dobândi competențe profesionale adecvate într-o perioadă de grație de\nmaximum 33 de luni de la data adoptării deciziei individuale de acordare a ajutorului, dar nu mai mult de ultima\ntranşă de plată."]
["13.",null,null,"Declar pe propria răspundere că în termen de 18 luni de la data instalării voi deveni fermier activ."]
["14.",null,null,"Declar pe proprie răspundere că voi îndeplini criteriului de selecţie privind obţinerea documentului care să\ncertifice utilizarea resurselor genetice autohtone până la momentul acordării celei de-a doua tranşe de sprijin"]
["15.",null,null,"Declar pe propria răspundere că în situaţia în care desfăşor altă activitate decât cea agricolă, în cadrul unei\nforme de organizare înregistrate la ONRC, de mai mult de 24 luni înaintea depunerii Cererii de finanțare la AFIR,\nmă angajez să respect condiţia privind microîntreprinderile/întreprinderile mici – ţinând cont de întreprinderi\npartenere/legate, număr de salariaţi, cifră de afaceri."]
["16.",null,null,"Declar pe propria răspundere că în vederea depunerii Dosarului Cererii de Plată - tranșa a doua, voi înștiința\nAFIR pentru efectuarea vizitei pe teren, potrivit prevederilor din cadrul Ghidului Solicitantului"]
["17.",null,null,"Declar pe propria răspundere că nu am înscrisuri care privesc sancțiuni economico-financiare în cazierul judiciar\npe care mă oblig să îl depun la încheierea contractului de finanţare . Prin prezenta îmi exprim consimțământul ca\nAFIR să solicite instituțiilor abilitate conform legii, extrasul de pe cazierul judiciar privind situația mea.\n(Până la reglementarea posibilităţii aplicării de către experţii evaluatori AFIR a normelor metodologice aferente\nLegii nr. 290/2004 privind cazierul judiciar, cu modificările şi completările ulterioare, solicitantul are obligaţia\ndepunerii documentului justificativ mai sus enunţat.)"]
["18.",null,null,"Sunt de acord ca AFIR să consulte şi să prelucreze, prin operaţiunile prevăzute de legislaţia în vigoare în vederea\ndesfăşurării activităţii specifice, datele mele cu caracter personal, furnizate AFIR."]
[19,null,null,"Declar pe propria răspundere că nu am creat condiții artificiale pentru a beneficia de plăți (sprijin) și  a obține astfel un avantaj care contravine obiectivelor măsurii, prevăzute în Anexa 16 la Cererea de finanțare-INSTRUCŢIUNI PRIVIND EVITAREA CREĂRII DE CONDIŢII ARTIFICIALE ÎN ACCESAREA PNDR 2014-2020"]
["Semnătura reprezentant legal şi ştampila",null,null,null,null,null,null,null,null,null,null,null,null,null,null,null,null,null,null,null,null,null,null,null,null,null,null,null,null,null,null,null,null,null,null,null,null,null,null,null,null," Data:"]
[]
[]
[]
["Factori de risc"]
["I1. Dimensiunea economică a exploataţiei agricole",null,null,null,null,null,null,null,null,null,null,null,null,null,null,null,null,null,null,null,null,null,null,null,null,null,null,null,null,null,null,null,null,null,null,null,null,null,null,null,null,"Factor\nîndeplinit",null,null,null,null,null,null,null,null,null,"Punctaj"]
["•",null,"8 000 SO - 16 000 SO",null,null,null,null,null,null,null,null,null,null,null,null,null,null,null,null,null,null,null,null,null,null,null,null,null,null,null,null,null,null,null,null,null,null,null,null,null,null,null,null,null,null,null,null,null,null,null,null,5]
["•",null,"16 000 SO - 20 000 SO",null,null,null,null,null,null,null,null,null,null,null,null,null,null,null,null,null,null,null,null,null,null,null,null,null,null,null,null,null,null,null,null,null,null,null,null,null,null,null,null,null,null,null,null,null,null,null,null,3]
["•",null,"20 000 SO - 29 999 SO",null,null,null,null,null,null,null,null,null,null,null,null,null,null,null,null,null,null,null,null,null,null,null,null,null,null,null,null,null,null,null,null,null,null,null,null,null,null,null,null,null,null,null,null,null,null,null,null,1]
[]
["I2. Pregătire profesionala a solicitantului",null,null,null,null,null,null,null,null,null,null,null,null,null,null,null,null,null,null,null,null,null,null,null,null,null,null,null,null,null,null,null,null,null,null,null,null,null,null,null,null,"Factor\nîndeplinit",null,null,null,null,null,null,null,null,null,"Punctaj"]
["•",null,"Cu pregătire profesională minimă",null,null,null,null,null,null,null,null,null,null,null,null,null,null,null,null,null,null,null,null,null,null,null,null,null,null,null,null,null,null,null,null,null,null,null,null,null,null,null,null,null,null,null,null,null,null,null,null,5]
["•",null,"Cu studii medii în domeniu",null,null,null,null,null,null,null,null,null,null,null,null,null,null,null,null,null,null,null,null,null,null,null,null,null,null,null,null,null,null,null,null,null,null,null,null,null,null,null,null,null,null,null,null,null,null,null,null,3]
["•",null,"Cu studii superioare în domeniu",null,null,null,null,null,null,null,null,null,null,null,null,null,null,null,null,null,null,null,null,null,null,null,null,null,null,null,null,null,null,null,null,null,null,null,null,null,null,null,null,null,null,null,null,null,null,null,null,1]
[]
["I3. Gradul de dotare al exploatației conform planului de afaceri",null,null,null,null,null,null,null,null,null,null,null,null,null,null,null,null,null,null,null,null,null,null,null,null,null,null,null,null,null,null,null,null,null,null,null,null,null,null,null,null,"Factor\nîndeplinit",null,null,null,null,null,null,null,null,null,"Punctaj"]
["•",null,"Nu deține baze de producție",null,null,null,null,null,null,null,null,null,null,null,null,null,null,null,null,null,null,null,null,null,null,null,null,null,null,null,null,null,null,null,null,null,null,null,null,null,null,null,null,null,null,null,null,null,null,null,null,5]
["•",null,"Propune achiziții pentru realizarea bazei de producție",null,null,null,null,null,null,null,null,null,null,null,null,null,null,null,null,null,null,null,null,null,null,null,null,null,null,null,null,null,null,null,null,null,null,null,null,null,null,null,null,null,null,null,null,null,null,null,null,3]
["•",null,"Deține baze de producție specifice activității",null,null,null,null,null,null,null,null,null,null,null,null,null,null,null,null,null,null,null,null,null,null,null,null,null,null,null,null,null,null,null,null,null,null,null,null,null,null,null,null,null,null,null,null,null,null,null,null,1]
["TOTAL RISC"]
[]
[]
[]
[]
[]
["Anexa INDICATORI DE MONITORIZARE"]
["Măsura M3/2B - Instalarea tânărului fermier"]
[]
["1. Cod CAEN"]
["2. Tipul beneficiarului",null,null,null,null,null,null,null,null,null,null,null,null,null,null,null,null,"Solicitanți înființați în baza OUG 44/ 2008",null,null,null,null,null,null,null,null,null,null,null,null,"Bărbaţi"]
[null,null,null,null,null,null,null,null,null,null,null,null,null,null,null,null,null,null,null,null,null,null,null,null,null,null,null,null,null,null,"Femei"]
[null,null,null,null,null,null,null,null,null,null,null,null,null,null,null,null,null,"Persoană juridică"]
["3. Tipul de zonă",null,null,null,null,null,null,null,null,null,null,null,null,null,null,null,null,"Zonă normală"]
[null,null,null,null,null,null,null,null,null,null,null,null,null,null,null,null,null,"Zonă montană"]
[null,null,null,null,null,null,null,null,null,null,null,null,null,null,null,null,null,"Zonă constrângeri specifice"]
[null,null,null,null,null,null,null,null,null,null,null,null,null,null,null,null,null,"Zonă constrângeri semnificative"]
["4. Tipul producţiei",null,null,null,null,null,null,null,null,null,null,null,null,null,null,null,null,"Ecologică"]
[null,null,null,null,null,null,null,null,null,null,null,null,null,null,null,null,null,"Convenţională"]
["5. Suprafaţa exploataţiei agricole sprijinite (Ha)"]
["6. Dimensiunea economică a exploataţiei(intre 8 000 și 29 999 Euro - valoare Producţie Standard)"]
[null,null,null,null,null,null,null,null,null,null,null,null,null,null,null,null,null,"Culturi de câmp"]
[null,null,null,null,null,null,null,null,null,null,null,null,null,null,null,null,null,"Horticultură"]
[null,null,null,null,null,null,null,null,null,null,null,null,null,null,null,null,null,"Viticultură"]
[null,null,null,null,null,null,null,null,null,null,null,null,null,null,null,null,null,"Culturi permanente (altele decât viticultura)"]
["7. Tip ramură agricolă",null,null,null,null,null,null,null,null,null,null,null,null,null,null,null,null,"Creștere bovine pentru carne"]
[null,null,null,null,null,null,null,null,null,null,null,null,null,null,null,null,null,"Creștere bovine pentru lapte"]
[null,null,null,null,null,null,null,null,null,null,null,null,null,null,null,null,null,"Creștere ovine și caprine"]
[null,null,null,null,null,null,null,null,null,null,null,null,null,null,null,null,null,"Porcine"]
[null,null,null,null,null,null,null,null,null,null,null,null,null,null,null,null,null,"Păsări de curte"]
[null,null,null,null,null,null,null,null,null,null,null,null,null,null,null,null,null,"Mixte - culturi mixte"]
[null,null,null,null,null,null,null,null,null,null,null,null,null,null,null,null,null,"Mixte - animale mixte"]
[null,null,null,null,null,null,null,null,null,null,null,null,null,null,null,null,null,"Mixte - culturi și animale cu excepția albinelor"]
[null,null,null,null,null,null,null,null,null,null,null,null,null,null,null,null,null,"Albine"]
[null,null,null,null,null,null,null,null,null,null,null,null,null,null,null,null,null,"Altele"]
["8. Contribuie la Prioritatea 1",null,null,null,null,null,null,null,null,null,null,null,null,null,null,null,null,"M01 - Transfer de cunoştinţe şi acţiuni de informare"]
[null,null,null,null,null,null,null,null,null,null,null,null,null,null,null,null,null,"M02 - Servicii de consiliere"]
[null,null,null,null,null,null,null,null,null,null,null,null,null,null,null,null,null,"M16 - Cooperare"]
["INDICATORI DE MONITORIZARE DIN SDL"]
["9. Numărul de exploatații agricole/beneficiari sprijiniți",null,null,null,null,null,null,null,null,null,null,null,null,null,null,null,null,"Numarul de exploatatii agricole sprijinite"]
[null,null,null,null,null,null,null,null,null,null,null,null,null,null,null,null,null,"Numarul de beneficiari sprijiniti"]
["10. Cheltuială publică totală",null,null,null,null,null,null,null,null,null,null,null,null,null,null,null,null,"Cheltuiala publica a proiectului"]
[]
[]
["*Pentru indicatorii de tip numeric care nu fac obiectul investiției se va completa valoarea zero."]
["Indic. nr. 1 - reprezintă codul CAEN pentru investiţia vizată prin proiect\nIndic. nr. 2, 3, 4, 7 - se va bifa doar o singură categorie/ categoria majoritară\nIndic. nr. 5 - se completează suprafaţa (Ha) exploataţiei agricole sprijinite prin proiect\nIndic. nr. 6 - se va completa dimensiunea economică a exploatatiei\nIndic. nr. 8 - se va completa din momentul demarării M01, M02, respectiv M16"]
["Indic. nr. 9- se va completa cu numărul de exloatații agricole/ beneficiari sprijiniți"]
["Indic. nr.10- Se va bifa daca proiectul contine elemente inovative sau de protectie a mediului"]

{"sheet":"Asociati","index":1,"n_rows":25,"n_cols":52,"rows_kept":25,"cut":false,"hidden":false,"merged":[[10,51,10,58],[0,0,0,60],[1,0,1,60],[5,3,5,10],[5,24,5,49],[6,3,6,16],[6,24,6,49],[10,4,10,15],[10,18,10,20],[10,21,10,26],[10,28,10,35],[10,37,10,48],[3,19,3,49],[11,51,12,58],[12,4,12,6],[12,7,12,9],[12,10,12,15],[11,4,11,6],[11,7,11,9],[11,10,11,15],[11,18,12,20],[11,21,12,26],[11,28,12,35],[25,4,25,6],[25,7,25,9],[25,10,25,15],[18,24,18,49],[11,37,12,48],[16,19,16,49],[18,3,18,10],[23,51,23,58],[24,28,25,35],[24,37,25,48],[24,51,25,58],[19,3,19,16],[19,24,19,49],[23,4,23,15],[23,18,23,20],[23,21,23,26],[23,28,23,35],[23,37,23,48],[24,4,24,6],[24,7,24,9],[24,10,24,15],[24,18,25,20],[24,21,25,26]]}
["B INFORMAŢII PRIVIND SOLICITANTUL"]
[]
[null,"Asociați"]
[null,null,null,"Nume şi prenume asociat:"]
[]
[null,null,null,"Data naşterii",null,null,null,null,null,null,null,null,null,null,null,null,null,null,null,null,null,null,null,null,"Cod numeric personal"]
[]
[]
[]
[]
[null,null,null,null,"Act de identitate",null,null,null,null,null,null,null,null,null,null,null,null,null,"Seria",null,null,"Nr.",null,null,null,null,null,null,"Eliberat la data de",null,null,null,null,null,null,null,null,"de:",null,null,null,null,null,null,null,null,null,null,null,null,null,"Valabil până la:"]
[null,null,null,null,"B.I.",null,null,"C.I.",null,null,"Paşaport"]
[]
[]
[]
[]
[null,null,null,"Nume şi prenume asociat:"]
[]
[null,null,null,"Data naşterii",null,null,null,null,null,null,null,null,null,null,null,null,null,null,null,null,null,null,null,null,"Cod numeric personal"]
[]
[]
[]
[]
[null,null,null,null,"Act de identitate",null,null,null,null,null,null,null,null,null,null,null,null,null,"Seria",null,null,"Nr.",null,null,null,null,null,null,"Eliberat la data de",null,null,null,null,null,null,null,null,"de:",null,null,null,null,null,null,null,null,null,null,null,null,null,"Valabil până la:"]
[null,null,null,null,"B.I.",null,null,"C.I.",null,null,"Paşaport"]